Workbook

Sheet Examples (hidden)
B1: Black | C1: CIE red | D1: CIE grey 40% | E1: CIE grey 70% | F1: CIE grey | G1: CIE grey 25% | H1: CIE red 50% | I1: CIE red 30% | L1: Black solid | M1: CIE red solid | N1: CIE grey 70% | O1: Black dashes | P1: CIE red dashes | Q1: CIE grey 70% dashes | S1: X value | T1: 1st Y value | U1: 2nd Y value | X1: Black | Y1: CIE red | Z1: CIE red 70% | AA1: CIE grey 40%
A2: 2003-04 | B2: 36.19 | C2: 36.88 | D2: 21.56 | E2: 5.36 | F2: 3.01 | G2: 10 | H2: 3.01 | I2: 10 | K2: 2003-04 | L2: 33.19 | M2: 36.88 | N2: 21.56 | O2: 5.36 | P2: 3.01 | Q2: 10 | S2: 1.8 | T2: 10 | U2: 17 | W2: 2003-04 | X2: 33.19 | Y2: 36.88 | Z2: 21.56 | AA2: 5.36
A3: 2004-05 | B3: 39.39 | C3: 32.02 | D3: 21.6 | E3: 7.01 | F3: 3.36 | G3: 12 | H3: 3.36 | I3: 12 | K3: 2004-05 | L3: 39.39 | M3: 32.02 | N3: 21.6 | O3: 7.01 | P3: 3.36 | Q3: 12 | S3: 2.3 | T3: 12 | U3: 9 | W3: 2004-05 | X3: 39.39 | Y3: 32.02 | Z3: 21.6 | AA3: 7.01
A4: 2005-06 | B4: 42.78 | C4: 29.91 | D4: 18.35 | E4: 6.33 | F4: 2.63 | G4: 14 | H4: 2.63 | I4: 14 | K4: 2005-06 | L4: 42.78 | M4: 29.91 | N4: 18.35 | O4: 6.33 | P4: 2.63 | Q4: 14 | S4: 3.7 | T4: 16 | U4: 14 | W4: 2005-06 | X4: 42.78 | Y4: 29.91 | Z4: 18.35 | AA4: 6.33
A5: 2006-07 | B5: 42.13 | C5: 26.53 | D5: 21.6 | E5: 7.01 | F5: 2.72 | G5: 16 | H5: 2.72 | I5: 16 | K5: 2006-07 | L5: 42.13 | M5: 26.53 | N5: 21.6 | O5: 7.01 | P5: 2.72 | Q5: 16 | S5: 4.1 | T5: 8 | U5: 23 | W5: 2006-07 | X5: 42.13 | Y5: 26.53 | Z5: 21.6 | AA5: 7.01
A6: 2007-08 | B6: 41.69 | C6: 24.76 | D6: 23.98 | E6: 7 | F6: 2.57 | G6: 18 | H6: 2.57 | I6: 18 | K6: 2007-08 | L6: 41.69 | M6: 24.76 | N6: 23.98 | O6: 7 | P6: 2.57 | Q6: 18 | S6: 5.5 | T6: 14 | U6: 27 | W6: 2007-08 | X6: 41.69 | Y6: 24.76 | Z6: 23.98 | AA6: 7
A7: 2008-09 | B7: 39.39 | C7: 32.02 | D7: 21.6 | E7: 7.01 | F7: 3.36 | G7: 12 | H7: 3.36 | I7: 12 | K7: 2008-09 | L7: 39.39 | M7: 32.02 | N7: 21.6 | O7: 7.01 | P7: 3.36 | Q7: 12 | W7: 2008-09 | X7: 39.39 | Y7: 32.02 | Z7: 21.6 | AA7: 7.01
A8: 2009-10 | B8: 42.13 | C8: 26.53 | D8: 21.6 | E8: 7.01 | F8: 2.72 | G8: 16 | H8: 2.72 | I8: 16 | K8: 2009-10 | L8: 42.13 | M8: 26.53 | N8: 21.6 | O8: 7.01 | P8: 2.72 | Q8: 16 | W8: 2009-10 | X8: 42.13 | Y8: 26.53 | Z8: 21.6 | AA8: 7.01
A9: 2010-11 | B9: 45 | C9: 22 | D9: 26 | E9: 8 | F9: 2 | G9: 20 | H9: 2 | I9: 20 | K9: 2010-11 | L9: 45 | M9: 22 | N9: 26 | O9: 8 | P9: 2 | Q9: 20 | W9: 2010-11 | X9: 45 | Y9: 22 | Z9: 26 | AA9: 8
A11: – en rule for when needed

Sheet Description
B3: Taxi model - 2014 reviews
B8: Contents | F8: Installing solver and enabling macros
F10: For Microsoft 2010:
B11: Worksheet | C11: Purpose
F12: Install Solver
B13: Sim_Template | C13: This worksheet should be copied and used to undertake a simulation, to model industry outcomes with different fares and licence numbers | F13: 1. Go to the File menu and scroll down to Options.
F14: 2. Choose Add-ins
B15: Inputs and assumptions | C15: This worksheet sets out the assumptions and input data that underpin the taxi model | F15: 3. Choose Manage: Excel Add-ins and select Go…
F16: 4. Check if Solver Add-in is ticked. If not tick it. Select OK.
B17: Base model | C17: This worksheet characterises the Sydney taxi industry for the year 2012/13. This is the baseline for the model. Calibration is undertaken of the model against input data.
F18: Enable macros
F19: 1. Go to the File menu and scroll down to Options
F20: 2. Choose Trust Center
F21: 3. Select Trust Center Settings
F22: 4. Select Macro Settings
B23: Steps to use the model | F23: 5. Choose Enable all macros. Select OK.
B26: 1. Make sure solver is installed and macros are enabled | F26: For Microsoft 2007
B27: 2. Copy Sim_Template to a new worksheet, such as Sim_1 | F27: 1. Select the Office button and choose Excel options.
B28: 3. Change the green cells to create a new simulation | F28: 2. Then proceed from ‘Choose Add-ins’ step onwards above.
B29: 4. Run the macro "RUN MODEL" from the simulation sheet
B30: 5. Check that Solver has found an appropriate solution through comparison of Q* and Q* flat. There are multiple solutions.
B31: 6. Extract results as required
B33: Colour coding
B35: Simulation inputs
B36: Key outputs
B37: Input data
B38: Assumptions
B42: Model structure
B44: The taxi model is a combination of 3 equations.
C45: 1. A demand equation, linking demand for taxi services to the (real) price of services and waiting time
C46: 2. A waiting time equation, linking the average waiting time to the number of taxi on the road and the share taken up by demand
C47: 3. A taxi entry condition, linking the decision of a taxi to drive a shift to the returns available. This is capped by the number of licences available.
B48: The model is broken into 14 shifts, for each weekday and weeknight
B52: Model equations
B54: The model allows for solution of quantity of tax services (Q), waiting time (W) and number of taxis (T) using 3 options for taxi entry.
B55: 1. Fixed taxi numbers based on the number of licences available
B56: 2. Free entry of taxis but an upward sloping cost curve for additional taxis that enter
B57: 3. Free entry of taxis and a flat cost curve.
B58: Solutions are obtained for each case and appropriate values then selected by the model.
B59: Demand equation
B62: Waiting time equation
B66: Taxi numbers equation
B68: Free entry, upward sloping supply
B71: Free entry, flat supply
B74: Fixed entry

Sheet Sim_template
B3: step 1 | J3: step 2 | P3: step 3
B5: Forecasts (annual % change) | J5: Refine fares | P5: Number of years after 2012/13 | S5: 2
N6: do not use this cell | P6: Simulation year | S6: =INDEX(B21:B30,S5*2-1, 1) -> 2014/15
F7: Annual | G7: ="Cumulative for "&S5&" years" -> Cumulative for 2 years | J7: ="Actual average fare increase over "&S5&" years" -> Actual average fare increase over 2 years | M7: nominal | N7: =SUMPRODUCT(D161:Q165,Sim_template!D191:Q195)/C155-1 -> 0.03861900463
N8: GST inclusive
B9: Change in demand | E9: % | F9: 0.025 | H9: =(1+F9)^$S$5-1 -> 0.050625 | J9: Flagfall | M9: $/trip | N9: 3.6
B11: CPI | E11: % | F11: 0.025 | H11: =(1+F11)^$S$5-1 -> 0.050625 | J11: Standard kilometre charge | M11: $/km | N11: 2.188671962
B13: Real change in costs (more than CPI) | E13: % | F13: 0 | H13: =(1+F13)^$S$5-1 -> 0 | J13: Waiting time | M13: $/hr | N13: 56.68 | P13: Check on model | R13: =IF(AND(SUM(ABS(J121:W123))<0.1, H31-N7<0.005), "MODEL SIMULATION CORRECT","ERROR IN MODEL SIMULATION") -> MODEL SIMULATION CORRECT
M14: $/min | N14: =N13/60 -> 0.9446666667 | P14: Summary of model outputs
K15: Charged when the taxi speed falls below (km/h) | N15: =N13/N11 -> 25.89698273 | T15: See outputs for each shift
B16: Number of licences and fare change
J17: Booking fee | M17: ($/booking) | N17: 2.5 | S17: Difference | U17: In equilibrium | V17: 2012/13
B18: Note: Do not include replacement licences here
D19: Unrestricted licences | F19: Peak availabiliity licences | H19: Fare change | J19: Surcharges | P19: Plate lease costs | S19: =U19/V19-1 -> 0.0317297912 | T19: $2012/13 (ex GST) | U19: =J67 -> 29222.65974 | V19: ='Base model'!B153 -> 28323.94682
L20: Flag fall surcharge | N20: Distance surcharge | P20: Total trips | S20: =U20/V20-1 -> 0.06506276847 | T20: 000,000 | U20: =SUM(J58:W58)*365/7/1000000/7 -> 45.85544187 | V20: =SUM('Base model'!J122:W122)*365/7/1000000/7 -> 43.05421542
B21: 2013/14 | D21: 0 | F21: 250 | H21: 0.014 | P21: Average occupancy | S21: =U21/V21-1 -> 0.02912186052 | T21: % | U21: =SUMPRODUCT(J54:W54,J62:W62)/SUM(J62:W62) -> 0.3071903246 | V21: ='Base model'!B148 -> 0.2984975214
J22: Level | K22: $ per trip | L22: 2.5 | M22: % per km | N22: 0.2 | P22: Average waiting time | S22: =U22/V22-1 -> -0.02177662253 | T22: mins | U22: =AVERAGE(J56:W56) -> 8.09060045 | V22: =AVERAGE('Base model'!J123:W123) -> 8.270708548
B23: 2014/15 | D23: 0 | F23: 95 | H23: 0.025 | P23: Average waiting time Fri and Sat nights | S23: =U23/V23-1 -> -0.07104758662 | T23: mins | U23: =AVERAGE(U56:V56) -> 8.133189812 | V23: =AVERAGE('Base model'!U123:V123) -> 8.755227604
M24: =ROUND((N11*(1+N22)),2) -> 2.63 | N24: per kilometre
B25: 2015/16 | J25: Hours of operation | L25: 10 pm until 6 am | N25: 10 pm until 6 am | P25: Average annual revenue per taxi | S25: =U25/V25-1 -> 0.01712097641 | T25: $2012/13 (ex GST) | U25: =U26+U19 -> 162124.0197 | V25: ='Base model'!B151 -> 159395.0213
P26: Average cost per taxi per year (excluding plate lease costs) | S26: =U26/V26-1 -> 0.01396406865 | T26: $2012/13 | U26: =SUMPRODUCT(J61:W61,J62:W62)/100*365/7 -> 132901.36 | V26: ='Base model'!B152 -> 131071.0745
B27: 2017/18 | J27: Shifts that it applies | P27: Occupied kilometres per taxi per year | S27: =U27/V27-1 -> 0.0316925825 | T27: km | U27: =SUMPRODUCT(J69:W69,J62:W62)/100*365/7 -> 56356.61526 | V27: ='Base model'!B150 -> 54625.39541
J28: (only applies during the hours specified above) | P28: Peak plate costs | S28: =U28/V28-1 -> -0.02442303371 | T28: $2012/13 (ex GST) | U28: =(SUM($Q$55:$W$55)+'Inputs and assumptions'!$C$63*SUM($Q$60:$W$60))*365/7*'Inputs and assumptions'!$C$64-('Inputs and assumptions'!$C$30*(1-'Inputs and assumptions'!$C$64*365/'Inputs and assumptions'!$C$46)) -> 20876.33486 | V28: ='Base model'!B154 -> 21398.96244
B29: 2017/18 | J29: Monday | K29: 3 am - 3 pm | L29: No | N29: Yes | P29: Kilometres per year | S29: =U29/V29-1 -> 0.0316925825 | T29: km | U29: ='Inputs and assumptions'!C53*U27 -> 112405.6924 | V29: ='Base model'!B149 -> 108952.7
J30: Tuesday | K30: 3 am - 3 pm | L30: No | N30: Yes
B31: ="Cumulatiave for "&S5&" years" -> Cumulatiave for 2 years | D31: =SUM(D21:OFFSET(D21,$S$5-1+2, 0)) -> 0 | F31: =SUM(F21:OFFSET(F21,($S$5-1)*2, 0)) -> 345 | H31: =PRODUCT(1+H21:OFFSET(H21,($S$5-1)*2, 0))-1 -> 0.03935 | J31: Wednesday | K31: 3 am - 3 pm | L31: No | N31: Yes
J32: Thursday | K32: 3 am - 3 pm | L32: No | N32: Yes
J33: Friday | K33: 3 am - 3 pm | L33: No | N33: Yes | P33: Fare schedule
J34: Saturday | K34: 3 am - 3 pm | L34: Yes | N34: Yes | S34: Dfiference | U34: =S6 -> 2014/15 | V34: 2012/13
J35: Sunday | K35: 3 am - 3 pm | L35: Yes | N35: Yes
J36: Monday | K36: 3 pm - 3 am | L36: No | N36: Yes | P36: Flagfall ($) | S36: =N9/V36-1 -> 0.02857142857 | U36: =N9 -> 3.6 | V36: ='Inputs and assumptions'!C15 -> 3.5
J37: Tuesday | K37: 3 pm - 3 am | L37: No | N37: Yes | P37: Flagfall surcharge ($) | U37: =L22 -> 2.5
J38: Wednesday | K38: 3 pm - 3 am | L38: No | N38: Yes | P38: Standard kilometre charge ($/km) | S38: =N11/V38-1 -> 0.02274390751 | U38: =N11 -> 2.188671962 | V38: ='Inputs and assumptions'!C16 -> 2.14
J39: Thursday | K39: 3 pm - 3 am | L39: No | N39: Yes | P39: Night kilometre charge ($/km) | S39: =M24/V39-1 -> 0.0233463035 | U39: =M24 -> 2.63 | V39: ='Inputs and assumptions'!C17 -> 2.57
J40: Friday | K40: 3 pm - 3 am | L40: Yes | N40: Yes | P40: Waiting time ($/hour when vehicle slower than 26km/hour) | S40: =N13/V40-1 -> 0.02495479204 | U40: =N13 -> 56.68 | V40: ='Inputs and assumptions'!C18 -> 55.3
J41: Saturday | K41: 3 pm - 3 am | L41: Yes | N41: Yes | P41: Booking fee ($/booking) | S41: =N17/V41-1 -> 0.04166666667 | U41: =N17 -> 2.5 | V41: ='Inputs and assumptions'!C19 -> 2.4
J42: Sunday | K42: 3 pm - 3 am | L42: No | N42: Yes
I50: Nominal surplus | J50: =J55*(1+$H$11) -> 44.10382236 | K50: 41.6706694 | L50: 44.78657982 | M50: 48.71638712 | N50: 56.46747575 | O50: 17.69512338 | P50: 15.30695384 | Q50: 17.69543474 | R50: 31.64201469 | S50: 47.15259082 | T50: 69.38160829 | U50: 129.614588 | V50: 133.5333232 | W50: 11.95132116
B51: MODEL OUTPUTS FOR EACH SHIFT | I51: Basear surplus | J51: ='Base model'!J136 -> 36.46116643 | K51: ='Base model'!K136 -> 34.34324948 | L51: ='Base model'!L136 -> 37.03863355 | M51: ='Base model'!M136 -> 40.4313673 | N51: ='Base model'!N136 -> 47.28206955 | O51: ='Base model'!O136 -> 15.95080653 | P51: ='Base model'!P136 -> 13.19485324 | Q51: ='Base model'!Q136 -> 17.19251477 | R51: ='Base model'!R136 -> 33.57692812 | S51: ='Base model'!S136 -> 49.32627296 | T51: ='Base model'!T136 -> 71.51412216 | U51: ='Base model'!U136 -> 123.438068 | V51: ='Base model'!V136 -> 124.1719094 | W51: ='Base model'!W136 -> 12.08210733
J52: Monday | K52: Tuesday | L52: Wednesday | M52: Thursday | N52: Friday | O52: Saturday | P52: Sunday | Q52: Monday | R52: Tuesday | S52: Wednesday | T52: Thursday | U52: Friday | V52: Saturday | W52: Sunday
J53: Day | K53: Day | L53: Day | M53: Day | N53: Day | O53: Day | P53: Day | Q53: Night | R53: Night | S53: Night | T53: Night | U53: Night | V53: Night | W53: Night
B54: Occupancy rate of taxis (time) | J54: =J58*J111/J57 -> 0.2890304362 | K54: 0.285395693 | L54: 0.2910503931 | M54: 0.2993495595 | N54: 0.3094245991 | O54: 0.2546983721 | P54: 0.2505465163 | Q54: 0.2455776709 | R54: 0.2787441255 | S54: 0.3073924835 | T54: 0.3430782457 | U54: 0.4234613485 | V54: 0.4043861736 | W54: 0.2646328165
B55: Average surplus accruing to shift (adjusted for distribution) | J55: =J65*J64+_xlfn.NORM.DIST(-1*(J63-100)/'Inputs and assumptions'!$C$59,0,1,FALSE)*'Inputs and assumptions'!$C$59/$H$64 -> 41.97865305 | K55: =K65*K64+_xlfn.NORM.DIST(-1*(K63-100)/'Inputs and assumptions'!$C$59,0,1,FALSE)*'Inputs and assumptions'!$C$59/$H$64 -> 39.66274303 | L55: =L65*L64+_xlfn.NORM.DIST(-1*(L63-100)/'Inputs and assumptions'!$C$59,0,1,FALSE)*'Inputs and assumptions'!$C$59/$H$64 -> 42.62851143 | M55: =M65*M64+_xlfn.NORM.DIST(-1*(M63-100)/'Inputs and assumptions'!$C$59,0,1,FALSE)*'Inputs and assumptions'!$C$59/$H$64 -> 46.3689586 | N55: =N65*N64+_xlfn.NORM.DIST(-1*(N63-100)/'Inputs and assumptions'!$C$59,0,1,FALSE)*'Inputs and assumptions'!$C$59/$H$64 -> 53.74655633 | O55: =O65*O64+_xlfn.NORM.DIST(-1*(O63-100)/'Inputs and assumptions'!$C$59,0,1,FALSE)*'Inputs and assumptions'!$C$59/$H$64 -> 16.84247318 | P55: =P65*P64+_xlfn.NORM.DIST(-1*(P63-100)/'Inputs and assumptions'!$C$59,0,1,FALSE)*'Inputs and assumptions'!$C$59/$H$64 -> 14.56937902 | Q55: =Q65*Q64+_xlfn.NORM.DIST(-1*(Q63-100)/'Inputs and assumptions'!$C$59,0,1,FALSE)*'Inputs and assumptions'!$C$59/$H$64 -> 16.84276954 | R55: =R65*R64+_xlfn.NORM.DIST(-1*(R63-100)/'Inputs and assumptions'!$C$59,0,1,FALSE)*'Inputs and assumptions'!$C$59/$H$64 -> 30.11732511 | S55: =S65*S64+_xlfn.NORM.DIST(-1*(S63-100)/'Inputs and assumptions'!$C$59,0,1,FALSE)*'Inputs and assumptions'!$C$59/$H$64 -> 44.88051476 | T55: =T65*T64+_xlfn.NORM.DIST(-1*(T63-100)/'Inputs and assumptions'!$C$59,0,1,FALSE)*'Inputs and assumptions'!$C$59/$H$64 -> 66.0384136 | U55: =U65*U64+_xlfn.NORM.DIST(-1*(U63-100)/'Inputs and assumptions'!$C$59,0,1,FALSE)*'Inputs and assumptions'!$C$59/$H$64 -> 123.3690308 | V55: =V65*V64+_xlfn.NORM.DIST(-1*(V63-100)/'Inputs and assumptions'!$C$59,0,1,FALSE)*'Inputs and assumptions'!$C$59/$H$64 -> 127.0989393 | W55: =W65*W64+_xlfn.NORM.DIST(-1*(W63-100)/'Inputs and assumptions'!$C$59,0,1,FALSE)*'Inputs and assumptions'!$C$59/$H$64 -> 11.37543953
B56: W | D56: Equilibrium waiting time | H56: Minutes, average | J56: =IF(J57=J$126,J125,IF('Inputs and assumptions'!$C$61="Flat",J128,J119)) -> 7.840201613 | K56: =IF(K57=K$126,K125,IF('Inputs and assumptions'!$C$61="Flat",K128,K119)) -> 7.741552608 | L56: =IF(L57=L$126,L125,IF('Inputs and assumptions'!$C$61="Flat",L128,L119)) -> 7.7383531 | M56: =IF(M57=M$126,M125,IF('Inputs and assumptions'!$C$61="Flat",M128,M119)) -> 7.568793917 | N56: =IF(N57=N$126,N125,IF('Inputs and assumptions'!$C$61="Flat",N128,N119)) -> 7.931802625 | O56: =IF(O57=O$126,O125,IF('Inputs and assumptions'!$C$61="Flat",O128,O119)) -> 8.753505864 | P56: =IF(P57=P$126,P125,IF('Inputs and assumptions'!$C$61="Flat",P128,P119)) -> 9.553695655 | Q56: =IF(Q57=Q$126,Q125,IF('Inputs and assumptions'!$C$61="Flat",Q128,Q119)) -> 7.736883493 | R56: =IF(R57=R$126,R125,IF('Inputs and assumptions'!$C$61="Flat",R128,R119)) -> 7.474886463 | S56: =IF(S57=S$126,S125,IF('Inputs and assumptions'!$C$61="Flat",S128,S119)) -> 7.503471505 | T56: =IF(T57=T$126,T125,IF('Inputs and assumptions'!$C$61="Flat",T128,T119)) -> 7.528928591 | U56: =IF(U57=U$126,U125,IF('Inputs and assumptions'!$C$61="Flat",U128,U119)) -> 8.052606339 | V56: =IF(V57=V$126,V125,IF('Inputs and assumptions'!$C$61="Flat",V128,V119)) -> 8.213773285 | W56: =IF(W57=W$126,W125,IF('Inputs and assumptions'!$C$61="Flat",W128,W119)) -> 9.629951237
B57: T | D57: Equilibrium number of taxis on the road | H57: Taxis on the road | J57: =IF('Inputs and assumptions'!$C$61="Flat",MIN(J129,J126),MIN(J120,J126)) -> 4441.692285 | K57: =IF('Inputs and assumptions'!$C$61="Flat",MIN(K129,K126),MIN(K120,K126)) -> 4475.411867 | L57: =IF('Inputs and assumptions'!$C$61="Flat",MIN(L129,L126),MIN(L120,L126)) -> 4512.973665 | M57: =IF('Inputs and assumptions'!$C$61="Flat",MIN(M129,M126),MIN(M120,M126)) -> 4668.728596 | N57: =IF('Inputs and assumptions'!$C$61="Flat",MIN(N129,N126),MIN(N120,N126)) -> 4520.054851 | O57: =IF('Inputs and assumptions'!$C$61="Flat",MIN(O129,O126),MIN(O120,O126)) -> 3795.007261 | P57: =IF('Inputs and assumptions'!$C$61="Flat",MIN(P129,P126),MIN(P120,P126)) -> 3457.885616 | Q57: =IF('Inputs and assumptions'!$C$61="Flat",MIN(Q129,Q126),MIN(Q120,Q126)) -> 4241.76024 | R57: =IF('Inputs and assumptions'!$C$61="Flat",MIN(R129,R126),MIN(R120,R126)) -> 4592.326358 | S57: =IF('Inputs and assumptions'!$C$61="Flat",MIN(S129,S126),MIN(S120,S126)) -> 4764.06052 | T57: =IF('Inputs and assumptions'!$C$61="Flat",MIN(T129,T126),MIN(T120,T126)) -> 5005.873676 | U57: =IF('Inputs and assumptions'!$C$61="Flat",MIN(U129,U126),MIN(U120,U126)) -> 5332.88 | V57: =IF('Inputs and assumptions'!$C$61="Flat",MIN(V129,V126),MIN(V120,V126)) -> 5060.800597 | W57: =IF('Inputs and assumptions'!$C$61="Flat",MIN(W129,W126),MIN(W120,W126)) -> 3496.216957
B58: Q | D58: Equilibrium demand | H58: Occupied kilometres | J58: =IF(J57=J$126,J124,IF('Inputs and assumptions'!$C$61="Flat",J127,J118)) -> 410810.9628 | K58: =IF(K57=K$126,K124,IF('Inputs and assumptions'!$C$61="Flat",K127,K118)) -> 408724.2469 | L58: =IF(L57=L$126,L124,IF('Inputs and assumptions'!$C$61="Flat",L127,L118)) -> 420320.8829 | M58: =IF(M57=M$126,M124,IF('Inputs and assumptions'!$C$61="Flat",M127,M118)) -> 447226.1916 | N58: =IF(N57=N$126,N124,IF('Inputs and assumptions'!$C$61="Flat",N127,N118)) -> 447557.1713 | O58: =IF(O57=O$126,O124,IF('Inputs and assumptions'!$C$61="Flat",O127,O118)) -> 309306.2949 | P58: =IF(P57=P$126,P124,IF('Inputs and assumptions'!$C$61="Flat",P127,P118)) -> 277235.5823 | Q58: =IF(Q57=Q$126,Q124,IF('Inputs and assumptions'!$C$61="Flat",Q127,Q118)) -> 333338.1121 | R58: =IF(R57=R$126,R124,IF('Inputs and assumptions'!$C$61="Flat",R127,R118)) -> 409626.8782 | S58: =IF(S57=S$126,S124,IF('Inputs and assumptions'!$C$61="Flat",S127,S118)) -> 468619.6464 | T58: =IF(T57=T$126,T124,IF('Inputs and assumptions'!$C$61="Flat",T127,T118)) -> 549570.0348 | U58: =IF(U57=U$126,U124,IF('Inputs and assumptions'!$C$61="Flat",U127,U118)) -> 722645.938 | V58: =IF(V57=V$126,V124,IF('Inputs and assumptions'!$C$61="Flat",V127,V118)) -> 654885.6925 | W58: =IF(W57=W$126,W124,IF('Inputs and assumptions'!$C$61="Flat",W127,W118)) -> 296068.3969
I59: Differnce in surplus (nominal) | J59: =J50-J51 -> 7.64265593 | K59: =K50-K51 -> 7.327419918 | L59: 7.747946268 | M59: 8.285019826 | N59: 9.185406196 | O59: 1.74431685 | P59: 2.112100598 | Q59: 0.5029199785 | R59: -1.934913434 | S59: -2.173682139 | T59: -2.132513877 | U59: 6.176519915 | V59: 9.361413794 | W59: -0.1307861669
B60: Revenue per taxi (excluding GST) | J60: =J58*J106/J57 -> 253.0156657 | K60: 249.8338314 | L60: 254.7839249 | M60: 262.0489699 | N60: 270.8686045 | O60: 225.4802716 | P60: 221.804702 | Q60: 218.7588713 | R60: 248.303317 | S60: 273.823074 | T60: 305.6117013 | U60: 400.4874661 | V60: 398.7476718 | W60: 235.7330617
B61: Cost per taxi | J61: =J108+J109*J57+J107*J58/J57 -> 215.8648487 | K61: 215.6067457 | L61: 216.8184708 | M61: 219.5025125 | N61: 219.7210741 | O61: 225.4802716 | P61: 221.804702 | Q61: 218.7588713 | R61: 227.038288 | S61: 233.0101569 | T61: 240.7000378 | U61: 276.802537 | V61: 271.4066479 | W61: 235.7330617
B62: Share of taxis on the road | H62: % | J62: =J57/('Base model'!J6+$D$31)*100 -> 82.85193593 | K62: =K57/('Base model'!K6+$D$31)*100 -> 83.48091526 | L62: =L57/('Base model'!L6+$D$31)*100 -> 84.18156435 | M62: =M57/('Base model'!M6+$D$31)*100 -> 87.08689789 | N62: =N57/('Base model'!N6+$D$31)*100 -> 84.3136514 | O62: =O57/('Base model'!O6+$D$31)*100 -> 70.78916733 | P62: =P57/('Base model'!P6+$D$31)*100 -> 64.50075762 | Q62: =Q57/('Base model'!Q6+$D$31+$F$31)*100 -> 70.79039118 | R62: =R57/('Base model'!R6+$D$31+$F$31)*100 -> 76.64096058 | S62: =S57/('Base model'!S6+$D$31+$F$31)*100 -> 79.50701803 | T62: =T57/('Base model'!T6+$D$31+$F$31)*100 -> 83.54261809 | U62: =U57/('Base model'!U6+$D$31+$F$31)*100 -> 89 | V62: =V57/('Base model'!V6+$D$31+$F$31)*100 -> 84.45928901 | W62: =W57/('Base model'!W6+$D$31+$F$31)*100 -> 58.34808005
B63: Free market taxis on the road as a proportion of maximum | H63: % | J63: =J120/J126*100 -> 120.0986993 | K63: 118.4697317 | L63: 120.3424075 | M63: 122.2956828 | N63: 127.1906048 | O63: 93.14364122 | P63: 84.86941792 | Q63: 93.14525156 | R63: 110.9181636 | S63: 120.306324 | T63: 131.0372979 | U63: 152.0116223 | V63: 154.5266948 | W63: 76.77378954
B64: Percentage of shifts where surplus accrues | H64: ='Base model'!C137 -> 0.5714894073 | J64: =(1-_xlfn.NORM.DIST(-1*(J63-100)/'Inputs and assumptions'!$C$59,0,1,TRUE)) -> 0.7888407135 | K64: =(1-_xlfn.NORM.DIST(-1*(K63-100)/'Inputs and assumptions'!$C$59,0,1,TRUE)) -> 0.7695517952 | L64: =(1-_xlfn.NORM.DIST(-1*(L63-100)/'Inputs and assumptions'!$C$59,0,1,TRUE)) -> 0.7916428791 | M64: =(1-_xlfn.NORM.DIST(-1*(M63-100)/'Inputs and assumptions'!$C$59,0,1,TRUE)) -> 0.8132981881 | N64: =(1-_xlfn.NORM.DIST(-1*(N63-100)/'Inputs and assumptions'!$C$59,0,1,TRUE)) -> 0.8611580846 | O64: =(1-_xlfn.NORM.DIST(-1*(O63-100)/'Inputs and assumptions'!$C$59,0,1,TRUE)) -> 0.3921467995 | P64: =(1-_xlfn.NORM.DIST(-1*(P63-100)/'Inputs and assumptions'!$C$59,0,1,TRUE)) -> 0.2729012429 | Q64: =(1-_xlfn.NORM.DIST(-1*(Q63-100)/'Inputs and assumptions'!$C$59,0,1,TRUE)) -> 0.3921715045 | R64: =(1-_xlfn.NORM.DIST(-1*(R63-100)/'Inputs and assumptions'!$C$59,0,1,TRUE)) -> 0.6685411841 | S64: =(1-_xlfn.NORM.DIST(-1*(S63-100)/'Inputs and assumptions'!$C$59,0,1,TRUE)) -> 0.7912293788 | T64: =(1-_xlfn.NORM.DIST(-1*(T63-100)/'Inputs and assumptions'!$C$59,0,1,TRUE)) -> 0.8923475415 | U64: =(1-_xlfn.NORM.DIST(-1*(U63-100)/'Inputs and assumptions'!$C$59,0,1,TRUE)) -> 0.9810748703 | V64: =(1-_xlfn.NORM.DIST(-1*(V63-100)/'Inputs and assumptions'!$C$59,0,1,TRUE)) -> 0.9852553318 | W64: =(1-_xlfn.NORM.DIST(-1*(W63-100)/'Inputs and assumptions'!$C$59,0,1,TRUE)) -> 0.1768943138
B65: Surplus per taxi | J65: =J60-J61 -> 37.150817 | K65: 34.22708568 | L65: 37.96545409 | M65: 42.54645735 | N65: 51.14753041 | O65: 1.426485596e-10 | P65: 1.687396889e-10 | Q65: 9.626432984e-11 | R65: 21.26502907 | S65: 40.8129171 | T65: 64.91166346 | U65: 123.6849291 | V65: 127.3410239 | W65: 2.127080734e-10
B66: Surplus (basic) | H66: $/taxi | J66: =SUMPRODUCT(J62:W62,J65:W65)*365/7/100 -> 25659.32158
B67: Surplus accounting for shift variation | H67: $/taxi | J67: =SUMPRODUCT(J62:W62,J55:W55)*365/7/100 -> 29222.65974
B68: Revenue per taxi (including GST) | J68: =J60*$D$113 -> 278.3172323 | K68: 274.8172145 | L68: 280.2623174 | M68: 288.2538668 | N68: 297.955465 | O68: 248.0282987 | P68: 243.9851721 | Q68: 240.6347585 | R68: 273.1336487 | S68: 301.2053814 | T68: 336.1728714 | U68: 440.5362128 | V68: 438.622439 | W68: 259.3063679
B69: Occupied kms per shift | J69: =J60/J106 -> 92.4897396 | K69: 91.32662177 | L69: 93.13612578 | M69: 95.79185904 | N69: 99.01587172 | O69: 81.50347909 | P69: 80.1748852 | Q69: 78.58485469 | R69: 89.19812015 | S69: 98.36559473 | T69: 109.7850386 | U69: 135.5076315 | V69: 129.4035756 | W69: 84.68250128
B71: Difference in revenue per taxi per shift (nominal) | J71: =J68-'Base model'!J141 -> 10.89600838 | K71: =K68-'Base model'!K141 -> 10.78046222 | L71: =L68-'Base model'!L141 -> 10.96758344 | M71: =M68-'Base model'!M141 -> 11.24920993 | N71: =N68-'Base model'!N141 -> 11.56955771 | O71: =O68-'Base model'!O141 -> 2.606283608 | P71: =P68-'Base model'!P141 -> 2.49005273 | Q71: =Q68-'Base model'!Q141 -> 2.997823706 | R71: =R68-'Base model'!R141 -> -1.92578903 | S71: =S68-'Base model'!S141 -> -2.156492671 | T71: =T68-'Base model'!T141 -> -2.463239578 | U71: =U68-'Base model'!U141 -> 2.134067988 | V71: =V68-'Base model'!V141 -> 4.274958367 | W71: =W68-'Base model'!W141 -> 2.869403339
B72: Difference in costs per taxi per shift (nominal) | J72: =J61-'Base model'!J132 -> 2.808517518 | K72: =K61-'Base model'!K132 -> 2.776559629 | L72: =L61-'Base model'!L132 -> 2.827429696 | M72: =M61-'Base model'!M132 -> 2.903184416 | N72: =N61-'Base model'!N132 -> 2.99177832 | O72: =O61-'Base model'!O132 -> 2.369348734 | P72: =P61-'Base model'!P132 -> 2.2636843 | Q72: =Q61-'Base model'!Q132 -> 2.725294278 | R72: =R61-'Base model'!R132 -> 3.145423108 | S72: =S61-'Base model'!S132 -> 3.308071529 | T72: =T61-'Base model'!T132 -> 3.522148891 | U72: =U61-'Base model'!U132 -> 1.91028868 | V72: =V61-'Base model'!V132 -> 0.8856057074 | W72: =W61-'Base model'!W132 -> 2.608548489
B74: Difference in surplus per taxi (accruing to the licence owner) | J74: =J65-'Base model'!J133 -> 7.096944647 | K74: =K65-'Base model'!K133 -> 7.023860572 | L74: =L65-'Base model'!L133 -> 7.143100705 | M74: =M65-'Base model'!M133 -> 7.323370062 | N74: =N65-'Base model'!N133 -> 7.526001421 | O74: =O65-'Base model'!O133 -> 1.299440555e-10 | P74: =P65-'Base model'!P133 -> 1.610089839e-10 | Q74: =Q65-'Base model'!Q133 -> 9.504219634e-11 | R74: =R65-'Base model'!R133 -> -4.896140408 | S74: =S65-'Base model'!S133 -> -5.268519412 | T74: =T65-'Base model'!T133 -> -5.761457598 | U74: =U65-'Base model'!U133 -> 0.0297731274 | V74: =V65-'Base model'!V133 -> 3.000720081 | W74: =W65-'Base model'!W133 -> 2.127080734e-10
B75: Difference in the number of taxis on the road | J75: =J57-'Base model'!J124 -> 0 | K75: =K57-'Base model'!K124 -> 0 | L75: =L57-'Base model'!L124 -> 0 | M75: =M57-'Base model'!M124 -> 0 | N75: =N57-'Base model'!N124 -> 0 | O75: =O57-'Base model'!O124 -> 158.0757568 | P75: =P57-'Base model'!P124 -> 149.3321335 | Q75: =Q57-'Base model'!Q124 -> 147.6360306 | R75: =R57-'Base model'!R124 -> 264.411314 | S75: =S57-'Base model'!S124 -> 274.2992122 | T75: =T57-'Base model'!T124 -> 288.2220324 | U75: =U57-'Base model'!U124 -> 307.05 | V75: =V57-'Base model'!V124 -> 291.3845471 | W75: =W57-'Base model'!W124 -> 128.7929797
B76: Additional taxis on the road | W76: =W75/('Base model'!W6+$D$31+$F$31) -> 0.02149415549
K77: Revenue per taxi
B99: CALIBRATION OF MODEL PARAMETERS
B100: Day | D100: Description | H100: Unit | J100: Monday | K100: Tuesday | L100: Wednesday | M100: Thursday | N100: Friday | O100: Saturday | P100: Sunday | Q100: Monday | R100: Tuesday | S100: Wednesday | T100: Thursday | U100: Friday | V100: Saturday | W100: Sunday
B101: Shift | J101: Day | K101: Day | L101: Day | M101: Day | N101: Day | O101: Day | P101: Day | Q101: Night | R101: Night | S101: Night | T101: Night | U101: Night | V101: Night | W101: Night
D103: Demand intercept with y axis | H103: Kms occupied | J103: ='Base model'!J10*(1+$H$9) -> 788761.5955 | K103: ='Base model'!K10*(1+$H$9) -> 783214.4385 | L103: ='Base model'!L10*(1+$H$9) -> 805385.1143 | M103: ='Base model'!M10*(1+$H$9) -> 854057.166 | N103: ='Base model'!N10*(1+$H$9) -> 862568.9894 | O103: ='Base model'!O10*(1+$H$9) -> 611505.7259 | P103: ='Base model'!P10*(1+$H$9) -> 557385.5729 | Q103: ='Base model'!Q10*(1+$H$9) -> 643153.9889 | R103: ='Base model'!R10*(1+$H$9) -> 786249.1886 | S103: ='Base model'!S10*(1+$H$9) -> 899990.7996 | T103: ='Base model'!T10*(1+$H$9) -> 1055989.633 | U103: ='Base model'!U10*(1+$H$9) -> 1420425.611 | V103: ='Base model'!V10*(1+$H$9) -> 1310054.746 | W103: ='Base model'!W10*(1+$H$9) -> 576804.254
D104: Impact of price on demand kilometres | H104: Change in Q per extra dollar | J104: ='Base model'!J11*(1+$H$9) -> 114682.6286 | K104: ='Base model'!K11*(1+$H$9) -> 113876.0953 | L104: ='Base model'!L11*(1+$H$9) -> 117099.6186 | M104: ='Base model'!M11*(1+$H$9) -> 124176.3308 | N104: ='Base model'!N11*(1+$H$9) -> 125678.694 | O104: ='Base model'!O11*(1+$H$9) -> 89098.0802 | P104: ='Base model'!P11*(1+$H$9) -> 81228.37482 | Q104: ='Base model'!Q11*(1+$H$9) -> 92860.37132 | R104: ='Base model'!R11*(1+$H$9) -> 113520.8564 | S104: ='Base model'!S11*(1+$H$9) -> 129943.1882 | T104: ='Base model'!T11*(1+$H$9) -> 152466.736 | U104: ='Base model'!U11*(1+$H$9) -> 197635.0846 | V104: ='Base model'!V11*(1+$H$9) -> 178611.4261 | W104: ='Base model'!W11*(1+$H$9) -> 80866.84208
D105: Impact of waiting time on demand kilometres | H105: Change in Q per extra minute | J105: ='Base model'!J12*(1+$H$9) -> 8191.616332 | K105: ='Base model'!K12*(1+$H$9) -> 8134.006805 | L105: ='Base model'!L12*(1+$H$9) -> 8364.258469 | M105: ='Base model'!M12*(1+$H$9) -> 8869.737914 | N105: ='Base model'!N12*(1+$H$9) -> 8977.049569 | O105: ='Base model'!O12*(1+$H$9) -> 6364.148586 | P105: ='Base model'!P12*(1+$H$9) -> 5802.026773 | Q105: ='Base model'!Q12*(1+$H$9) -> 6632.883666 | R105: ='Base model'!R12*(1+$H$9) -> 8108.632598 | S105: ='Base model'!S12*(1+$H$9) -> 9281.656301 | T105: ='Base model'!T12*(1+$H$9) -> 10890.48114 | U105: ='Base model'!U12*(1+$H$9) -> 14116.79176 | V105: ='Base model'!V12*(1+$H$9) -> 12757.95901 | W105: ='Base model'!W12*(1+$H$9) -> 5776.203006
B106: P | D106: Price per kilometre of demand (excluding GST) | H106: $/km occupied (real 2012/13) | J106: =SUMPRODUCT(Sim_template!D161:D165,Sim_template!D191:D195)/Sim_template!D174/'Base model'!$B$20/(1+$H$11) -> 2.735607937 | K106: =SUMPRODUCT(Sim_template!E161:E165,Sim_template!E191:E195)/Sim_template!E174/'Base model'!$B$20/(1+$H$11) -> 2.735607937 | L106: =SUMPRODUCT(Sim_template!F161:F165,Sim_template!F191:F195)/Sim_template!F174/'Base model'!$B$20/(1+$H$11) -> 2.735607937 | M106: =SUMPRODUCT(Sim_template!G161:G165,Sim_template!G191:G195)/Sim_template!G174/'Base model'!$B$20/(1+$H$11) -> 2.735607937 | N106: =SUMPRODUCT(Sim_template!H161:H165,Sim_template!H191:H195)/Sim_template!H174/'Base model'!$B$20/(1+$H$11) -> 2.735607937 | O106: =SUMPRODUCT(Sim_template!I161:I165,Sim_template!I191:I195)/Sim_template!I174/'Base model'!$B$20/(1+$H$11) -> 2.766511001 | P106: =SUMPRODUCT(Sim_template!J161:J165,Sim_template!J191:J195)/Sim_template!J174/'Base model'!$B$20/(1+$H$11) -> 2.766511001 | Q106: =SUMPRODUCT(Sim_template!K161:K165,Sim_template!K191:K195)/Sim_template!K174/'Base model'!$B$20/(1+$H$11) -> 2.783728139 | R106: =SUMPRODUCT(Sim_template!L161:L165,Sim_template!L191:L195)/Sim_template!L174/'Base model'!$B$20/(1+$H$11) -> 2.783728139 | S106: =SUMPRODUCT(Sim_template!M161:M165,Sim_template!M191:M195)/Sim_template!M174/'Base model'!$B$20/(1+$H$11) -> 2.783728139 | T106: =SUMPRODUCT(Sim_template!N161:N165,Sim_template!N191:N195)/Sim_template!N174/'Base model'!$B$20/(1+$H$11) -> 2.783728139 | U106: =SUMPRODUCT(Sim_template!O161:O165,Sim_template!O191:O195)/Sim_template!O174/'Base model'!$B$20/(1+$H$11) -> 2.955460601 | V106: =SUMPRODUCT(Sim_template!P161:P165,Sim_template!P191:P195)/Sim_template!P174/'Base model'!$B$20/(1+$H$11) -> 3.081427001 | W106: =SUMPRODUCT(Sim_template!Q161:Q165,Sim_template!Q191:Q195)/Sim_template!Q174/'Base model'!$B$20/(1+$H$11) -> 2.783728139
B107: c | D107: Variable cost | H107: $/km occupied | J107: ='Base model'!J14*(1+$H$13) -> 0.4828223323 | K107: ='Base model'!K14*(1+$H$13) -> 0.4828223323 | L107: ='Base model'!L14*(1+$H$13) -> 0.4828223323 | M107: ='Base model'!M14*(1+$H$13) -> 0.4828223323 | N107: ='Base model'!N14*(1+$H$13) -> 0.4828223323 | O107: ='Base model'!O14*(1+$H$13) -> 0.4828223323 | P107: ='Base model'!P14*(1+$H$13) -> 0.4828223323 | Q107: ='Base model'!Q14*(1+$H$13) -> 0.4828223323 | R107: ='Base model'!R14*(1+$H$13) -> 0.4828223323 | S107: ='Base model'!S14*(1+$H$13) -> 0.4828223323 | T107: ='Base model'!T14*(1+$H$13) -> 0.4828223323 | U107: ='Base model'!U14*(1+$H$13) -> 0.4828223323 | V107: ='Base model'!V14*(1+$H$13) -> 0.4828223323 | W107: ='Base model'!W14*(1+$H$13) -> 0.4828223323
D108: Fixed component of shift costs | H108: $/taxi/shift | J108: ='Base model'!J15*(1+$H$13) -> 131.2335063 | K108: ='Base model'!K15*(1+$H$13) -> 131.2335063 | L108: ='Base model'!L15*(1+$H$13) -> 131.2335063 | M108: ='Base model'!M15*(1+$H$13) -> 131.2335063 | N108: ='Base model'!N15*(1+$H$13) -> 131.2335063 | O108: ='Base model'!O15*(1+$H$13) -> 151.9735063 | P108: ='Base model'!P15*(1+$H$13) -> 151.9735063 | Q108: ='Base model'!Q15*(1+$H$13) -> 142.6405063 | R108: ='Base model'!R15*(1+$H$13) -> 142.6405063 | S108: ='Base model'!S15*(1+$H$13) -> 142.6405063 | T108: ='Base model'!T15*(1+$H$13) -> 142.6405063 | U108: ='Base model'!U15*(1+$H$13) -> 163.3805063 | V108: ='Base model'!V15*(1+$H$13) -> 163.3805063 | W108: ='Base model'!W15*(1+$H$13) -> 163.3805063
D109: Variable component of fixed costs | H109: $/additional taxi per shift | J109: ='Base model'!J16*(1+$H$13) -> 0.009 | K109: ='Base model'!K16*(1+$H$13) -> 0.009 | L109: ='Base model'!L16*(1+$H$13) -> 0.009 | M109: ='Base model'!M16*(1+$H$13) -> 0.009 | N109: ='Base model'!N16*(1+$H$13) -> 0.009 | O109: ='Base model'!O16*(1+$H$13) -> 0.009 | P109: ='Base model'!P16*(1+$H$13) -> 0.009 | Q109: ='Base model'!Q16*(1+$H$13) -> 0.009 | R109: ='Base model'!R16*(1+$H$13) -> 0.009 | S109: ='Base model'!S16*(1+$H$13) -> 0.009 | T109: ='Base model'!T16*(1+$H$13) -> 0.009 | U109: ='Base model'!U16*(1+$H$13) -> 0.009 | V109: ='Base model'!V16*(1+$H$13) -> 0.009 | W109: ='Base model'!W16*(1+$H$13) -> 0.009
D110: Waiting time constant | H110: Unit | J110: 24758.6356 | K110: ='Base model'!K17 -> 24758.6356 | L110: 24758.6356 | M110: 24758.6356 | N110: 24758.6356 | O110: 24758.6356 | P110: 24758.6356 | Q110: 24758.6356 | R110: 24758.6356 | S110: 24758.6356 | T110: 24758.6356 | U110: 24758.6356 | V110: 24758.6356 | W110: 24758.6356
D111: Constant to link occupied taxi kms to occupied taxis | H111: Unit | J111: 0.003125 | K111: ='Base model'!K18 -> 0.003125 | L111: 0.003125 | M111: 0.003125 | N111: 0.003125 | O111: 0.003125 | P111: 0.003125 | Q111: 0.003125 | R111: 0.003125 | S111: 0.003125 | T111: 0.003125 | U111: 0.003125 | V111: 0.003125 | W111: 0.003125
B113: GST adjustor | D113: =(1+'Inputs and assumptions'!$C$20) -> 1.1
J116: Monday | K116: Tuesday | L116: Wednesday | M116: Thursday | N116: Friday | O116: Saturday | P116: Sunday | Q116: Monday | R116: Tuesday | S116: Wednesday | T116: Thursday | U116: Friday | V116: Saturday | W116: Sunday
B117: SIMULATION MODEL | J117: Day | K117: Day | L117: Day | M117: Day | N117: Day | O117: Day | P117: Day | Q117: Night | R117: Night | S117: Night | T117: Night | U117: Night | V117: Night | W117: Night
B118: Q* | D118: Free entry demand | H118: Occupied kilometres | J118: 424433.5355 | K118: 421168.7059 | L118: 434216.139 | M118: 462848.8115 | N118: 466950.9652 | O118: 309306.2949 | P118: 277235.5823 | Q118: 333338.1121 | R118: 417264.192 | S118: 483803.619 | T118: 574951.7517 | U118: 774845.357 | V118: 703490.8936 | W118: 296068.3969
B119: W* | D119: Free entry waiting time | H119: Minutes, average | J119: 6.177212027 | K119: 6.211622849 | L119: 6.077087353 | M119: 5.80745439 | N119: 5.771427585 | O119: 8.753505864 | P119: 9.553695655 | Q119: 7.736883493 | R119: 6.533012029 | S119: 5.867559545 | T119: 5.198295393 | U119: 4.354923474 | V119: 4.403978858 | W119: 9.629951237
B120: T* | D120: Free entry number of taxis on the road | H120: Taxis on the road | J120: 5334.414663 | K120: 5302.008431 | L120: 5431.021159 | M120: 5709.653513 | N120: 5749.085104 | O120: 3795.007261 | P120: 3457.885616 | Q120: 4241.76024 | R120: 5093.72406 | S120: 5731.466087 | T120: 6559.561603 | U120: 8106.597405 | V120: 7820.287894 | W120: 3496.216957
B121: Q* zero condition | D121: Zero condition to solve for free entry | H121: Occupied kilometres | J121: =J103-J104*J106-J105*J119-J118 -> -8.963979781e-09 | K121: =K103-K104*K106-K105*K119-K118 -> -2.619344741e-09 | L121: 6.868503988e-09 | M121: -6.519258022e-09 | N121: 5.878973752e-09 | O121: -6.519258022e-09 | P121: 1.338776201e-09 | Q121: 0 | R121: -2.910383046e-09 | S121: -2.270098776e-09 | T121: 2.793967724e-09 | U121: 6.286427379e-09 | V121: -1.396983862e-09 | W121: 4.249159247e-09
B122: W* zero condition | D122: Zero condition to solve for free entry | H122: Minutes, average | J122: =J110/(J120-J118*J111)-J119 -> -8.061551426e-11 | K122: -8.208811408e-11 | L122: -7.812772651e-11 | M122: -7.155165349e-11 | N122: -6.918199347e-11 | O122: -2.161417711e-10 | P122: -2.630375917e-10 | Q122: -1.273701145e-10 | R122: -8.802114593e-11 | S122: -7.019274051e-11 | T122: -5.395506264e-11 | U122: -2.983746583e-11 | V122: -1.740740885e-11 | W122: -3.530242765e-10
B123: T* zero condition | D123: Zero condition to solve for free entry | H123: Taxis on the road | J123: =(-J108+SQRT(J108^2+4*J109*(J106-J107)*J118))/(2*J109)-J120 -> 1.735315891e-09 | K123: 1.791704562e-09 | L123: 1.778971637e-09 | M123: 1.696207619e-09 | N123: 1.703483576e-09 | O123: 2.456999937e-09 | P123: 2.723027137e-09 | Q123: 1.865373633e-09 | R123: 1.717125997e-09 | S123: 1.633452484e-09 | T123: 1.600710675e-09 | U123: 1.109583536e-09 | V123: 6.930349628e-10 | W123: 3.285094863e-09
B124: Qbar | D124: Fixed taxi numbers demand | H124: Occupied kilometres | J124: =((J111*(J103-J104*J106)+J126)-SQRT((J111*(J103-J104*J106)+J126)^2-4*J111*(J126*(J103-J104*J106)-J105*J110)))/(2*J111) -> 410810.9628 | K124: 408724.2469 | L124: 420320.8829 | M124: 447226.1916 | N124: 447557.1713 | O124: 314069.8219 | P124: 287438.0985 | Q124: 337716.2744 | R124: 409626.8782 | S124: 468619.6464 | T124: 549570.0348 | U124: 722645.938 | V124: 654885.6925 | W124: 311742.691
B125: Wbar | D125: Fixed taxi numbers waiting time | H125: Minutes, average | J125: =J110/(J126-J124*J111) -> 7.840201613 | K125: 7.741552608 | L125: 7.7383531 | M125: 7.568793917 | N125: 7.931802625 | O125: 8.005011863 | P125: 7.795255606 | Q125: 7.076814278 | R125: 7.474886463 | S125: 7.503471505 | T125: 7.528928591 | U125: 8.052606339 | V125: 8.213773285 | W125: 6.916353041
B126: Tbar | D126: Fixed taxi numbers | H126: Taxis on the road | J126: ='Base model'!J8/'Base model'!J6*('Base model'!J6+$D$31) -> 4441.692285 | K126: ='Base model'!K8/'Base model'!K6*('Base model'!K6+$D$31) -> 4475.411867 | L126: ='Base model'!L8/'Base model'!L6*('Base model'!L6+$D$31) -> 4512.973665 | M126: ='Base model'!M8/'Base model'!M6*('Base model'!M6+$D$31) -> 4668.728596 | N126: ='Base model'!N8/'Base model'!N6*('Base model'!N6+$D$31) -> 4520.054851 | O126: ='Base model'!O8/'Base model'!O6*('Base model'!O6+$D$31) -> 4074.36 | P126: ='Base model'!P8/'Base model'!P6*('Base model'!P6+$D$31) -> 4074.36 | Q126: ='Base model'!Q8/'Base model'!Q6*('Base model'!Q6+$D$31+$F$31) -> 4553.92 | R126: ='Base model'!R8/'Base model'!R6*('Base model'!R6+$D$31+$F$31) -> 4592.326358 | S126: ='Base model'!S8/'Base model'!S6*('Base model'!S6+$D$31+$F$31) -> 4764.06052 | T126: ='Base model'!T8/'Base model'!T6*('Base model'!T6+$D$31+$F$31) -> 5005.873676 | U126: ='Base model'!U8/'Base model'!U6*('Base model'!U6+$D$31+$F$31) -> 5332.88 | V126: ='Base model'!V8/'Base model'!V6*('Base model'!V6+$D$31+$F$31) -> 5060.800597 | W126: ='Base model'!W8/'Base model'!W6*('Base model'!W6+$D$31+$F$31) -> 4553.92
B127: Q*_flat | D127: Free entry demand, flat cost curve | H127: Occupied kilometres | J127: =(J103-J104*J106+SQRT((J103-J104*J106)^2-4*J105*J110/((J106-J107)/J108-J111)))/2 -> 442384.2822 | K127: 439025.035 | L127: 452449.3845 | M127: 481905.2448 | N127: 486205.0232 | O127: 324176.4048 | P127: 291221.9118 | Q127: 348415.4284 | R127: 434730.7542 | S127: 503147.0729 | T127: 596827.0223 | U127: 799940.6367 | V127: 725615.2506 | W127: 309530.0313
B128: W*_flat | D128: Free entry waiting time, flat cost curve | H128: Minutes, average | J128: =J110/((J106-J107)/J108-J111)/J127 -> 3.98585613 | K128: 4.016354337 | L128: 3.897187539 | M128: 3.658976785 | N128: 3.626618441 | O128: 6.416962373 | P128: 7.143101903 | Q128: 5.463767142 | R128: 4.378942025 | S128: 3.78350759 | T128: 3.189635687 | U128: 2.577233466 | V128: 2.669817698 | W128: 7.299417775
B129: T*_flat | D129: Free entry number of taxis on the road, flat cost curve | H129: Taxis on the road | J129: =(J106-J107)*J127/J108 -> 7594.07388 | K129: 7536.408241 | L129: 7766.85382 | M129: 8272.500129 | N129: 8346.311148 | O129: 4871.362123 | P129: 4376.158688 | Q129: 5620.220392 | R129: 7012.555848 | S129: 8116.165959 | T129: 9627.298702 | U129: 12106.48611 | V129: 11541.07807 | W129: 4359.145791
B133: Difference between free entry and actual (for info) | J133: =J120-J126 -> 892.722378 | K133: =K120-K126 -> 826.5965642 | L133: 918.0474939 | M133: 1040.924917 | N133: 1229.030253 | O133: -279.3527394 | P133: =P120-P126 -> -616.4743839 | Q133: -312.1597603 | R133: 501.3977026 | S133: 967.4055669 | T133: 1553.687927 | U133: 2773.717405 | V133: 2759.487297 | W133: -1057.703043
B137: Baseline data
B138: Baseline taxis on the road | H138: No. | J138: ='Base model'!J124 -> 4441.692285 | K138: ='Base model'!K124 -> 4475.411867 | L138: ='Base model'!L124 -> 4512.973665 | M138: ='Base model'!M124 -> 4668.728596 | N138: ='Base model'!N124 -> 4520.054851 | O138: ='Base model'!O124 -> 3636.931504 | P138: ='Base model'!P124 -> 3308.553483 | Q138: ='Base model'!Q124 -> 4094.124209 | R138: ='Base model'!R124 -> 4327.915044 | S138: ='Base model'!S124 -> 4489.761308 | T138: ='Base model'!T124 -> 4717.651643 | U138: ='Base model'!U124 -> 5025.83 | V138: ='Base model'!V124 -> 4769.41605 | W138: ='Base model'!W124 -> 3367.423977
B139: Baseline revenue per taxi | H139: $/taxi | J139: ='Base model'!J141 -> 267.4212239 | K139: ='Base model'!K141 -> 264.0367523 | L139: ='Base model'!L141 -> 269.2947339 | M139: ='Base model'!M141 -> 277.0046569 | N139: ='Base model'!N141 -> 286.3859073 | O139: ='Base model'!O141 -> 245.4220151 | P139: ='Base model'!P141 -> 241.4951194 | Q139: ='Base model'!Q141 -> 237.6369348 | R139: ='Base model'!R141 -> 275.0594378 | S139: ='Base model'!S141 -> 303.3618741 | T139: ='Base model'!T141 -> 338.636111 | U139: ='Base model'!U141 -> 438.4021448 | V139: ='Base model'!V141 -> 434.3474806 | W139: ='Base model'!W141 -> 256.4369646
B140: Simulation revenue per taxi | H140: $/taxi | J140: =J68 -> 278.3172323 | K140: 274.8172145 | L140: 280.2623174 | M140: 288.2538668 | N140: 297.955465 | O140: 248.0282987 | P140: 243.9851721 | Q140: 240.6347585 | R140: 273.1336487 | S140: 301.2053814 | T140: 336.1728714 | U140: 440.5362128 | V140: 438.622439 | W140: 259.3063679
B141: Headings for charts | J141: Day | Q141: Night
J142: Monday | K142: Tuesday | L142: Wednesday | M142: Thursday | N142: Friday | O142: Saturday | P142: Sunday | Q142: Monday | R142: Tuesday | S142: Wednesday | T142: Thursday | U142: Friday | V142: Saturday | W142: Sunday
B143: Additional taxis on the road | H143: No. | I143: =B143 -> Additional taxis on the road | J143: =J57-J138 -> 0 | K143: 0 | L143: 0 | M143: 0 | N143: 0 | O143: 158.0757568 | P143: 149.3321335 | Q143: 147.6360306 | R143: 264.411314 | S143: 274.2992122 | T143: 288.2220324 | U143: 307.05 | V143: 291.3845471 | W143: 128.7929797
B144: Proportion of taxis on the road 2011/12 | H144: % | I144: Proportion of taxis on the road 2011/12 | J144: ='Base model'!J134/100 -> 0.8285193593 | K144: ='Base model'!K134/100 -> 0.8348091526 | L144: ='Base model'!L134/100 -> 0.8418156435 | M144: ='Base model'!M134/100 -> 0.8708689789 | N144: ='Base model'!N134/100 -> 0.843136514 | O144: ='Base model'!O134/100 -> 0.6784054288 | P144: ='Base model'!P134/100 -> 0.6171523004 | Q144: ='Base model'!Q134/100 -> 0.7250087142 | R144: ='Base model'!R134/100 -> 0.7664096058 | S144: ='Base model'!S134/100 -> 0.7950701803 | T144: ='Base model'!T134/100 -> 0.8354261809 | U144: ='Base model'!U134/100 -> 0.89 | V144: ='Base model'!V134/100 -> 0.8445928901 | W144: ='Base model'!W134/100 -> 0.5963208743
B145: Proportion of taxis on the road 2017/18 | H145: % | I145: Proportion of taxis on the road 2017/18 | J145: =J62/100 -> 0.8285193593 | K145: 0.8348091526 | L145: 0.8418156435 | M145: 0.8708689789 | N145: 0.843136514 | O145: 0.7078916733 | P145: 0.6450075762 | Q145: 0.7079039118 | R145: 0.7664096058 | S145: 0.7950701803 | T145: 0.8354261809 | U145: 0.89 | V145: 0.8445928901 | W145: 0.5834808005
B148: Revenue | C148: 2012/13
C149: Revenue | D149: Revenue share
B150: Flagfall ($) | C150: =V36*R175 -> 2901869.334 | D150: =C150/$C$155 -> 0.1594503149
B151: Standard kilometre charge ($/km) | C151: =V38*R176 -> 7921310.31 | D151: 0.435255788
B152: Night kilometre charge ($/km) | C152: =V39*R177 -> 2998114.012 | D152: 0.1647387144
B153: Waiting time ($/hour when vehicle slower than 26km/hour) | C153: =V40*R178 -> 3979942.981 | D153: 0.2186877108
B154: Booking fee ($/booking) | C154: =V41*R179 -> 397970.6515 | D154: 0.02186747176
B155: Weighted average | C155: =SUM(C150:C154) -> 18199207.29 | D155: 1
B158: Fare setting for 2013/14 | T158: DO NOT DELETE
B159: Fares | D159: Monday | E159: Tuesday | F159: Wednesday | G159: Thursday | H159: Friday | I159: Saturday | J159: Sunday | K159: Monday | L159: Tuesday | M159: Wednesday | N159: Thursday | O159: Friday | P159: Saturday | Q159: Sunday | T159: Yes
D160: Day | E160: Day | F160: Day | G160: Day | H160: Day | I160: Day | J160: Day | K160: Night | L160: Night | M160: Night | N160: Night | O160: Night | P160: Night | Q160: Night | T160: No
B161: Average flagfall ($) | D161: =IF(AND(L29="Yes", $L$25="5 pm until 5 am"), $N$9+(1-'Inputs and assumptions'!D10)*Sim_template!$L$22, IF(AND(L29="Yes", $L$25="10 pm until 6 am"), $N$9+(1-'Inputs and assumptions'!D9)*Sim_template!$L$22, IF(AND(L29="Yes", $L$25="12 am until 5 am"), $N$9+(1-'Inputs and assumptions'!D11)*Sim_template!$L$22, $N$9))) -> 3.6 | E161: =IF(AND(L30="Yes", $L$25="5 pm until 5 am"), $N$9+(1-'Inputs and assumptions'!E10)*Sim_template!$L$22, IF(AND(L30="Yes", $L$25="10 pm until 6 am"), $N$9+(1-'Inputs and assumptions'!E9)*Sim_template!$L$22, IF(AND(L30="Yes", $L$25="12 am until 5 am"), $N$9+(1-'Inputs and assumptions'!E11)*Sim_template!$L$22, $N$9))) -> 3.6 | F161: =IF(AND(L31="Yes", $L$25="5 pm until 5 am"), $N$9+(1-'Inputs and assumptions'!F10)*Sim_template!$L$22, IF(AND(L31="Yes", $L$25="10 pm until 6 am"), $N$9+(1-'Inputs and assumptions'!F9)*Sim_template!$L$22, IF(AND(L31="Yes", $L$25="12 am until 5 am"), $N$9+(1-'Inputs and assumptions'!F11)*Sim_template!$L$22, $N$9))) -> 3.6 | G161: =IF(AND(L32="Yes", $L$25="5 pm until 5 am"), $N$9+(1-'Inputs and assumptions'!G10)*Sim_template!$L$22, IF(AND(L32="Yes", $L$25="10 pm until 6 am"), $N$9+(1-'Inputs and assumptions'!G9)*Sim_template!$L$22, IF(AND(L32="Yes", $L$25="12 am until 5 am"), $N$9+(1-'Inputs and assumptions'!G11)*Sim_template!$L$22, $N$9))) -> 3.6 | H161: =IF(AND(L33="Yes", $L$25="5 pm until 5 am"), $N$9+(1-'Inputs and assumptions'!H10)*Sim_template!$L$22, IF(AND(L33="Yes", $L$25="10 pm until 6 am"), $N$9+(1-'Inputs and assumptions'!H9)*Sim_template!$L$22, IF(AND(L33="Yes", $L$25="12 am until 5 am"), $N$9+(1-'Inputs and assumptions'!H11)*Sim_template!$L$22, $N$9))) -> 3.6 | I161: =IF(AND(L34="Yes", $L$25="5 pm until 5 am"), $N$9+(1-'Inputs and assumptions'!I10)*Sim_template!$L$22, IF(AND(L34="Yes", $L$25="10 pm until 6 am"), $N$9+(1-'Inputs and assumptions'!I9)*Sim_template!$L$22, IF(AND(L34="Yes", $L$25="12 am until 5 am"), $N$9+(1-'Inputs and assumptions'!I11)*Sim_template!$L$22, $N$9))) -> 3.85 | J161: =IF(AND(L35="Yes", $L$25="5 pm until 5 am"), $N$9+(1-'Inputs and assumptions'!J10)*Sim_template!$L$22, IF(AND(L35="Yes", $L$25="10 pm until 6 am"), $N$9+(1-'Inputs and assumptions'!J9)*Sim_template!$L$22, IF(AND(L35="Yes", $L$25="12 am until 5 am"), $N$9+(1-'Inputs and assumptions'!J11)*Sim_template!$L$22, $N$9))) -> 3.85 | K161: =IF(AND(L36="Yes", $L$25="5 pm until 5 am"), $N$9+(1-'Inputs and assumptions'!K10)*Sim_template!$L$22, IF(AND(L36="Yes", $L$25="10 pm until 6 am"), $N$9+(1-'Inputs and assumptions'!K9)*Sim_template!$L$22, IF(AND(L36="Yes", $L$25="12 am until 5 am"), $N$9+(1-'Inputs and assumptions'!K11)*Sim_template!$L$22, $N$9))) -> 3.6 | L161: =IF(AND(L37="Yes", $L$25="5 pm until 5 am"), $N$9+(1-'Inputs and assumptions'!L10)*Sim_template!$L$22, IF(AND(L37="Yes", $L$25="10 pm until 6 am"), $N$9+(1-'Inputs and assumptions'!L9)*Sim_template!$L$22, IF(AND(L37="Yes", $L$25="12 am until 5 am"), $N$9+(1-'Inputs and assumptions'!L11)*Sim_template!$L$22, $N$9))) -> 3.6 | M161: =IF(AND(L38="Yes", $L$25="5 pm until 5 am"), $N$9+(1-'Inputs and assumptions'!M10)*Sim_template!$L$22, IF(AND(L38="Yes", $L$25="10 pm until 6 am"), $N$9+(1-'Inputs and assumptions'!M9)*Sim_template!$L$22, IF(AND(L38="Yes", $L$25="12 am until 5 am"), $N$9+(1-'Inputs and assumptions'!M11)*Sim_template!$L$22, $N$9))) -> 3.6 | N161: =IF(AND(L39="Yes", $L$25="5 pm until 5 am"), $N$9+(1-'Inputs and assumptions'!N10)*Sim_template!$L$22, IF(AND(L39="Yes", $L$25="10 pm until 6 am"), $N$9+(1-'Inputs and assumptions'!N9)*Sim_template!$L$22, IF(AND(L39="Yes", $L$25="12 am until 5 am"), $N$9+(1-'Inputs and assumptions'!N11)*Sim_template!$L$22, $N$9))) -> 3.6 | O161: =IF(AND(L40="Yes", $L$25="5 pm until 5 am"), $N$9+(1-'Inputs and assumptions'!O10)*Sim_template!$L$22, IF(AND(L40="Yes", $L$25="10 pm until 6 am"), $N$9+(1-'Inputs and assumptions'!O9)*Sim_template!$L$22, IF(AND(L40="Yes", $L$25="12 am until 5 am"), $N$9+(1-'Inputs and assumptions'!O11)*Sim_template!$L$22, $N$9))) -> 4.6 | P161: =IF(AND(L41="Yes", $L$25="5 pm until 5 am"), $N$9+(1-'Inputs and assumptions'!P10)*Sim_template!$L$22, IF(AND(L41="Yes", $L$25="10 pm until 6 am"), $N$9+(1-'Inputs and assumptions'!P9)*Sim_template!$L$22, IF(AND(L41="Yes", $L$25="12 am until 5 am"), $N$9+(1-'Inputs and assumptions'!P11)*Sim_template!$L$22, $N$9))) -> 5.1 | Q161: =IF(AND(L42="Yes", $L$25="5 pm until 5 am"), $N$9+(1-'Inputs and assumptions'!Q10)*Sim_template!$L$22, IF(AND(L42="Yes", $L$25="10 pm until 6 am"), $N$9+(1-'Inputs and assumptions'!Q9)*Sim_template!$L$22, IF(AND(L42="Yes", $L$25="12 am until 5 am"), $N$9+(1-'Inputs and assumptions'!Q11)*Sim_template!$L$22, $N$9))) -> 3.6
B162: Standard kilometre charge ($/km) | D162: =$N$11 -> 2.188671962 | E162: 2.188671962 | F162: 2.188671962 | G162: 2.188671962 | H162: 2.188671962 | I162: 2.188671962 | J162: 2.188671962 | K162: 2.188671962 | L162: 2.188671962 | M162: 2.188671962 | N162: 2.188671962 | O162: 2.188671962 | P162: 2.188671962 | Q162: 2.188671962 | T162: DO NOT DELETE
B163: Night kilometre charge ($/km) | D163: =IF(N29="No",N11,IF(N29="Yes",$M$24,"na")) -> 2.63 | E163: =IF(N30="No",D162,IF(N30="Yes",$M$24,"na")) -> 2.63 | F163: =IF(N31="No",E162,IF(N31="Yes",$M$24,"na")) -> 2.63 | G163: =IF(N32="No",F162,IF(N32="Yes",$M$24,"na")) -> 2.63 | H163: =IF(N33="No",G162,IF(N33="Yes",$M$24,"na")) -> 2.63 | I163: =IF(N34="No",H162,IF(N34="Yes",$M$24,"na")) -> 2.63 | J163: =IF(N35="No",I162,IF(N35="Yes",$M$24,"na")) -> 2.63 | K163: =IF(N36="No",J162,IF(N36="Yes",$M$24,"na")) -> 2.63 | L163: =IF(N37="No",K162,IF(N37="Yes",$M$24,"na")) -> 2.63 | M163: =IF(N38="No",L162,IF(N38="Yes",$M$24,"na")) -> 2.63 | N163: =IF(N39="No",M162,IF(N39="Yes",$M$24,"na")) -> 2.63 | O163: =IF(N40="No",N162,IF(N40="Yes",$M$24,"na")) -> 2.63 | P163: =IF(N41="No",O162,IF(N41="Yes",$M$24,"na")) -> 2.63 | Q163: =IF(N42="No",P162,IF(N42="Yes",$M$24,"na")) -> 2.63 | T163: 10 pm until 6 am
B164: Waiting time ($/hour when vehicle slower than 26km/hour) | D164: =$N$13 -> 56.68 | E164: 56.68 | F164: 56.68 | G164: 56.68 | H164: 56.68 | I164: 56.68 | J164: 56.68 | K164: 56.68 | L164: 56.68 | M164: 56.68 | N164: 56.68 | O164: 56.68 | P164: 56.68 | Q164: 56.68 | T164: 5 pm until 5 am
B165: Booking fee ($/booking) | D165: =$N$17 -> 2.5 | E165: 2.5 | F165: 2.5 | G165: 2.5 | H165: 2.5 | I165: 2.5 | J165: 2.5 | K165: 2.5 | L165: 2.5 | M165: 2.5 | N165: 2.5 | O165: 2.5 | P165: 2.5 | Q165: 2.5 | T165: 12 am until 5 am
F167: Km threshold for waiting
B168: For fare goal seek | D168: =N7-H31 -> -0.0007309953703 | F168: 2012/13
F169: =ROUND(V40/V38,0) -> 26
B171: Weights 2012/13
D172: Monday | E172: Tuesday | F172: Wednesday | G172: Thursday | H172: Friday | I172: Saturday | J172: Sunday | K172: Monday | L172: Tuesday | M172: Wednesday | N172: Thursday | O172: Friday | P172: Saturday | Q172: Sunday | R172: Total
D173: Day | E173: Day | F173: Day | G173: Day | H173: Day | I173: Day | J173: Day | K173: Night | L173: Night | M173: Night | N173: Night | O173: Night | P173: Night | Q173: Night
B174: Occupied kms | D174: ='Base model'!J9 -> 382718.9454 | E174: ='Base model'!K9 -> 380027.3817 | F174: ='Base model'!L9 -> 390784.9258 | G174: ='Base model'!M9 -> 414401.3346 | H174: ='Base model'!N9 -> 419415.022 | I174: ='Base model'!O9 -> 297338.1731 | J174: ='Base model'!P9 -> 271075.3871 | K174: ='Base model'!Q9 -> 315327.6217 | L174: ='Base model'!R9 -> 385484.7998 | M174: ='Base model'!S9 -> 441250.4054 | N174: ='Base model'!T9 -> 517734.0189 | O174: ='Base model'!U9 -> 682678.0371 | P174: ='Base model'!V9 -> 630901.6342 | Q174: ='Base model'!W9 -> 274600.9802
B175: Flagfall (no of trips) | D175: =D174/'Inputs and assumptions'!$C$44 -> 54674.13506 | E175: ='Base model'!K9/'Inputs and assumptions'!$C$44 -> 54289.62595 | F175: ='Base model'!L9/'Inputs and assumptions'!$C$44 -> 55826.41797 | G175: ='Base model'!M9/'Inputs and assumptions'!$C$44 -> 59200.19066 | H175: ='Base model'!N9/'Inputs and assumptions'!$C$44 -> 59916.43172 | I175: ='Base model'!O9/'Inputs and assumptions'!$C$44 -> 42476.88188 | J175: ='Base model'!P9/'Inputs and assumptions'!$C$44 -> 38725.0553 | K175: ='Base model'!Q9/'Inputs and assumptions'!$C$44 -> 45046.8031 | L175: ='Base model'!R9/'Inputs and assumptions'!$C$44 -> 55069.25712 | M175: ='Base model'!S9/'Inputs and assumptions'!$C$44 -> 63035.7722 | N175: ='Base model'!T9/'Inputs and assumptions'!$C$44 -> 73962.00271 | O175: ='Base model'!U9/'Inputs and assumptions'!$C$44 -> 97525.43387 | P175: ='Base model'!V9/'Inputs and assumptions'!$C$44 -> 90128.80489 | Q175: ='Base model'!W9/'Inputs and assumptions'!$C$44 -> 39228.71145 | R175: =SUM(D175:Q175) -> 829105.5239
B176: Standard kilometre charge (kms) | D176: =D174*'Inputs and assumptions'!D9*('Inputs and assumptions'!$C$52/'Inputs and assumptions'!$C$44) -> 288919.3498 | E176: =E174*'Inputs and assumptions'!E9*('Inputs and assumptions'!$C$52/'Inputs and assumptions'!$C$44) -> 286887.4545 | F176: =F174*'Inputs and assumptions'!F9*('Inputs and assumptions'!$C$52/'Inputs and assumptions'!$C$44) -> 295008.46 | G176: =G174*'Inputs and assumptions'!G9*('Inputs and assumptions'!$C$52/'Inputs and assumptions'!$C$44) -> 312836.7843 | H176: =H174*'Inputs and assumptions'!H9*('Inputs and assumptions'!$C$52/'Inputs and assumptions'!$C$44) -> 316621.68 | I176: =I174*'Inputs and assumptions'!I9*('Inputs and assumptions'!$C$52/'Inputs and assumptions'!$C$44) -> 224464.33 | J176: =J174*'Inputs and assumptions'!J9*('Inputs and assumptions'!$C$52/'Inputs and assumptions'!$C$44) -> 204638.2222 | K176: =K174*'Inputs and assumptions'!K9*('Inputs and assumptions'!$C$52/'Inputs and assumptions'!$C$44) -> 198370.6593 | L176: =L174*'Inputs and assumptions'!L9*('Inputs and assumptions'!$C$52/'Inputs and assumptions'!$C$44) -> 242506.1068 | M176: =M174*'Inputs and assumptions'!M9*('Inputs and assumptions'!$C$52/'Inputs and assumptions'!$C$44) -> 277587.9049 | N176: =N174*'Inputs and assumptions'!N9*('Inputs and assumptions'!$C$52/'Inputs and assumptions'!$C$44) -> 325703.2737 | O176: =O174*'Inputs and assumptions'!O9*('Inputs and assumptions'!$C$52/'Inputs and assumptions'!$C$44) -> 343574.8295 | P176: =P174*'Inputs and assumptions'!P9*('Inputs and assumptions'!$C$52/'Inputs and assumptions'!$C$44) -> 211678.0382 | Q176: =Q174*'Inputs and assumptions'!Q9*('Inputs and assumptions'!$C$52/'Inputs and assumptions'!$C$44) -> 172749.7807 | R176: =SUM(D176:Q176) -> 3701546.874
B177: Night kilometre charge (kms) | D177: =D174*(1-'Inputs and assumptions'!D9)*('Inputs and assumptions'!$C$52/'Inputs and assumptions'!$C$44) -> 32102.14998 | E177: =E174*(1-'Inputs and assumptions'!E9)*('Inputs and assumptions'!$C$52/'Inputs and assumptions'!$C$44) -> 31876.38383 | F177: =F174*(1-'Inputs and assumptions'!F9)*('Inputs and assumptions'!$C$52/'Inputs and assumptions'!$C$44) -> 32778.71777 | G177: =G174*(1-'Inputs and assumptions'!G9)*('Inputs and assumptions'!$C$52/'Inputs and assumptions'!$C$44) -> 34759.6427 | H177: =H174*(1-'Inputs and assumptions'!H9)*('Inputs and assumptions'!$C$52/'Inputs and assumptions'!$C$44) -> 35180.18667 | I177: =I174*(1-'Inputs and assumptions'!I9)*('Inputs and assumptions'!$C$52/'Inputs and assumptions'!$C$44) -> 24940.48111 | J177: =J174*(1-'Inputs and assumptions'!J9)*('Inputs and assumptions'!$C$52/'Inputs and assumptions'!$C$44) -> 22737.58024 | K177: =K174*(1-'Inputs and assumptions'!K9)*('Inputs and assumptions'!$C$52/'Inputs and assumptions'!$C$44) -> 66123.5531 | L177: =L174*(1-'Inputs and assumptions'!L9)*('Inputs and assumptions'!$C$52/'Inputs and assumptions'!$C$44) -> 80835.36893 | M177: =M174*(1-'Inputs and assumptions'!M9)*('Inputs and assumptions'!$C$52/'Inputs and assumptions'!$C$44) -> 92529.30162 | N177: =N174*(1-'Inputs and assumptions'!N9)*('Inputs and assumptions'!$C$52/'Inputs and assumptions'!$C$44) -> 108567.7579 | O177: =O174*(1-'Inputs and assumptions'!O9)*('Inputs and assumptions'!$C$52/'Inputs and assumptions'!$C$44) -> 229049.8863 | P177: =P174*(1-'Inputs and assumptions'!P9)*('Inputs and assumptions'!$C$52/'Inputs and assumptions'!$C$44) -> 317517.0573 | Q177: =Q174*(1-'Inputs and assumptions'!Q9)*('Inputs and assumptions'!$C$52/'Inputs and assumptions'!$C$44) -> 57583.26022 | R177: =SUM(D177:Q177) -> 1166581.328
B178: Waiting time (hours) | D178: ='Inputs and assumptions'!$C$51/60*Sim_template!D175 -> 4745.957355 | E178: ='Inputs and assumptions'!$C$51/60*Sim_template!E175 -> 4712.580259 | F178: ='Inputs and assumptions'!$C$51/60*Sim_template!F175 -> 4845.980621 | G178: ='Inputs and assumptions'!$C$51/60*Sim_template!G175 -> 5138.83905 | H178: ='Inputs and assumptions'!$C$51/60*Sim_template!H175 -> 5201.011949 | I178: ='Inputs and assumptions'!$C$51/60*Sim_template!I175 -> 3687.181694 | J178: ='Inputs and assumptions'!$C$51/60*Sim_template!J175 -> 3361.506511 | K178: ='Inputs and assumptions'!$C$51/60*Sim_template!K175 -> 3910.262252 | L178: ='Inputs and assumptions'!$C$51/60*Sim_template!L175 -> 4780.255702 | M178: ='Inputs and assumptions'!$C$51/60*Sim_template!M175 -> 5471.784535 | N178: ='Inputs and assumptions'!$C$51/60*Sim_template!N175 -> 6420.229791 | O178: ='Inputs and assumptions'!$C$51/60*Sim_template!O175 -> 8465.640099 | P178: ='Inputs and assumptions'!$C$51/60*Sim_template!P175 -> 7823.579906 | Q178: ='Inputs and assumptions'!$C$51/60*Sim_template!Q175 -> 3405.226099 | R178: =SUM(D178:Q178) -> 71970.03582
B179: Booking fee (number) | D179: =D175*'Inputs and assumptions'!$C$47 -> 10934.82701 | E179: =E175*'Inputs and assumptions'!$C$47 -> 10857.92519 | F179: =F175*'Inputs and assumptions'!$C$47 -> 11165.28359 | G179: =G175*'Inputs and assumptions'!$C$47 -> 11840.03813 | H179: =H175*'Inputs and assumptions'!$C$47 -> 11983.28634 | I179: =I175*'Inputs and assumptions'!$C$47 -> 8495.376375 | J179: =J175*'Inputs and assumptions'!$C$47 -> 7745.011059 | K179: =K175*'Inputs and assumptions'!$C$47 -> 9009.360619 | L179: =L175*'Inputs and assumptions'!$C$47 -> 11013.85142 | M179: =M175*'Inputs and assumptions'!$C$47 -> 12607.15444 | N179: =N175*'Inputs and assumptions'!$C$47 -> 14792.40054 | O179: =O175*'Inputs and assumptions'!$C$47 -> 19505.08677 | P179: =P175*'Inputs and assumptions'!$C$47 -> 18025.76098 | Q179: =Q175*'Inputs and assumptions'!$C$47 -> 7845.742291 | R179: =SUM(D179:Q179) -> 165821.1048
B181: Weights 2013/14
B182: Different distance rate night hours adjustment
B183: Distance surcharge hours: | D183: ='Inputs and assumptions'!B9 -> The proportion of trips in each shift for which the standard distance rate currently applies (rather than the night time distance rate)
B184: =Sim_template!N25 -> 10 pm until 6 am | D184: =IF($B$184="5 pm until 5 am", 'Inputs and assumptions'!D10, IF($B$184="12 am until 5 am", 'Inputs and assumptions'!D11,'Inputs and assumptions'!D9)) -> 0.9 | E184: =IF($B$184="5 pm until 5 am", 'Inputs and assumptions'!E10, IF($B$184="12 am until 5 am", 'Inputs and assumptions'!E11,'Inputs and assumptions'!E9)) -> 0.9 | F184: =IF($B$184="5 pm until 5 am", 'Inputs and assumptions'!F10, IF($B$184="12 am until 5 am", 'Inputs and assumptions'!F11,'Inputs and assumptions'!F9)) -> 0.9 | G184: =IF($B$184="5 pm until 5 am", 'Inputs and assumptions'!G10, IF($B$184="12 am until 5 am", 'Inputs and assumptions'!G11,'Inputs and assumptions'!G9)) -> 0.9 | H184: =IF($B$184="5 pm until 5 am", 'Inputs and assumptions'!H10, IF($B$184="12 am until 5 am", 'Inputs and assumptions'!H11,'Inputs and assumptions'!H9)) -> 0.9 | I184: =IF($B$184="5 pm until 5 am", 'Inputs and assumptions'!I10, IF($B$184="12 am until 5 am", 'Inputs and assumptions'!I11,'Inputs and assumptions'!I9)) -> 0.9 | J184: =IF($B$184="5 pm until 5 am", 'Inputs and assumptions'!J10, IF($B$184="12 am until 5 am", 'Inputs and assumptions'!J11,'Inputs and assumptions'!J9)) -> 0.9 | K184: =IF($B$184="5 pm until 5 am", 'Inputs and assumptions'!K10, IF($B$184="12 am until 5 am", 'Inputs and assumptions'!K11,'Inputs and assumptions'!K9)) -> 0.75 | L184: =IF($B$184="5 pm until 5 am", 'Inputs and assumptions'!L10, IF($B$184="12 am until 5 am", 'Inputs and assumptions'!L11,'Inputs and assumptions'!L9)) -> 0.75 | M184: =IF($B$184="5 pm until 5 am", 'Inputs and assumptions'!M10, IF($B$184="12 am until 5 am", 'Inputs and assumptions'!M11,'Inputs and assumptions'!M9)) -> 0.75 | N184: =IF($B$184="5 pm until 5 am", 'Inputs and assumptions'!N10, IF($B$184="12 am until 5 am", 'Inputs and assumptions'!N11,'Inputs and assumptions'!N9)) -> 0.75 | O184: =IF($B$184="5 pm until 5 am", 'Inputs and assumptions'!O10, IF($B$184="12 am until 5 am", 'Inputs and assumptions'!O11,'Inputs and assumptions'!O9)) -> 0.6 | P184: =IF($B$184="5 pm until 5 am", 'Inputs and assumptions'!P10, IF($B$184="12 am until 5 am", 'Inputs and assumptions'!P11,'Inputs and assumptions'!P9)) -> 0.4 | Q184: =IF($B$184="5 pm until 5 am", 'Inputs and assumptions'!Q10, IF($B$184="12 am until 5 am", 'Inputs and assumptions'!Q11,'Inputs and assumptions'!Q9)) -> 0.75
D185: =Sim_template!D172 -> Monday | E185: =Sim_template!E172 -> Tuesday | F185: =Sim_template!F172 -> Wednesday | G185: =Sim_template!G172 -> Thursday | H185: =Sim_template!H172 -> Friday | I185: =Sim_template!I172 -> Saturday | J185: =Sim_template!J172 -> Sunday | K185: =Sim_template!K172 -> Monday | L185: =Sim_template!L172 -> Tuesday | M185: =Sim_template!M172 -> Wednesday | N185: =Sim_template!N172 -> Thursday | O185: =Sim_template!O172 -> Friday | P185: =Sim_template!P172 -> Saturday | Q185: =Sim_template!Q172 -> Sunday | R185: =Sim_template!R172 -> Total
D186: =Sim_template!D173 -> Day | E186: =Sim_template!E173 -> Day | F186: =Sim_template!F173 -> Day | G186: =Sim_template!G173 -> Day | H186: =Sim_template!H173 -> Day | I186: =Sim_template!I173 -> Day | J186: =Sim_template!J173 -> Day | K186: =Sim_template!K173 -> Night | L186: =Sim_template!L173 -> Night | M186: =Sim_template!M173 -> Night | N186: =Sim_template!N173 -> Night | O186: =Sim_template!O173 -> Night | P186: =Sim_template!P173 -> Night | Q186: =Sim_template!Q173 -> Night
B187: =Sim_template!B176 -> Standard kilometre charge (kms) | D187: =D174*D184*('Inputs and assumptions'!$C$52/'Inputs and assumptions'!$C$44) -> 288919.3498 | E187: =E174*E184*('Inputs and assumptions'!$C$52/'Inputs and assumptions'!$C$44) -> 286887.4545 | F187: =F174*F184*('Inputs and assumptions'!$C$52/'Inputs and assumptions'!$C$44) -> 295008.46 | G187: =G174*G184*('Inputs and assumptions'!$C$52/'Inputs and assumptions'!$C$44) -> 312836.7843 | H187: =H174*H184*('Inputs and assumptions'!$C$52/'Inputs and assumptions'!$C$44) -> 316621.68 | I187: =I174*I184*('Inputs and assumptions'!$C$52/'Inputs and assumptions'!$C$44) -> 224464.33 | J187: =J174*J184*('Inputs and assumptions'!$C$52/'Inputs and assumptions'!$C$44) -> 204638.2222 | K187: =K174*K184*('Inputs and assumptions'!$C$52/'Inputs and assumptions'!$C$44) -> 198370.6593 | L187: =L174*L184*('Inputs and assumptions'!$C$52/'Inputs and assumptions'!$C$44) -> 242506.1068 | M187: =M174*M184*('Inputs and assumptions'!$C$52/'Inputs and assumptions'!$C$44) -> 277587.9049 | N187: =N174*N184*('Inputs and assumptions'!$C$52/'Inputs and assumptions'!$C$44) -> 325703.2737 | O187: =O174*O184*('Inputs and assumptions'!$C$52/'Inputs and assumptions'!$C$44) -> 343574.8295 | P187: =P174*P184*('Inputs and assumptions'!$C$52/'Inputs and assumptions'!$C$44) -> 211678.0382 | Q187: =Q174*Q184*('Inputs and assumptions'!$C$52/'Inputs and assumptions'!$C$44) -> 172749.7807 | R187: =SUM(D187:Q187) -> 3701546.874
B188: =Sim_template!B177 -> Night kilometre charge (kms) | D188: =D174*(1-D184)*('Inputs and assumptions'!$C$52/'Inputs and assumptions'!$C$44) -> 32102.14998 | E188: =E174*(1-E184)*('Inputs and assumptions'!$C$52/'Inputs and assumptions'!$C$44) -> 31876.38383 | F188: =F174*(1-F184)*('Inputs and assumptions'!$C$52/'Inputs and assumptions'!$C$44) -> 32778.71777 | G188: =G174*(1-G184)*('Inputs and assumptions'!$C$52/'Inputs and assumptions'!$C$44) -> 34759.6427 | H188: =H174*(1-H184)*('Inputs and assumptions'!$C$52/'Inputs and assumptions'!$C$44) -> 35180.18667 | I188: =I174*(1-I184)*('Inputs and assumptions'!$C$52/'Inputs and assumptions'!$C$44) -> 24940.48111 | J188: =J174*(1-J184)*('Inputs and assumptions'!$C$52/'Inputs and assumptions'!$C$44) -> 22737.58024 | K188: =K174*(1-K184)*('Inputs and assumptions'!$C$52/'Inputs and assumptions'!$C$44) -> 66123.5531 | L188: =L174*(1-L184)*('Inputs and assumptions'!$C$52/'Inputs and assumptions'!$C$44) -> 80835.36893 | M188: =M174*(1-M184)*('Inputs and assumptions'!$C$52/'Inputs and assumptions'!$C$44) -> 92529.30162 | N188: =N174*(1-N184)*('Inputs and assumptions'!$C$52/'Inputs and assumptions'!$C$44) -> 108567.7579 | O188: =O174*(1-O184)*('Inputs and assumptions'!$C$52/'Inputs and assumptions'!$C$44) -> 229049.8863 | P188: =P174*(1-P184)*('Inputs and assumptions'!$C$52/'Inputs and assumptions'!$C$44) -> 317517.0573 | Q188: =Q174*(1-Q184)*('Inputs and assumptions'!$C$52/'Inputs and assumptions'!$C$44) -> 57583.26022 | R188: =SUM(D188:Q188) -> 1166581.328
S189: =R188/SUM(R187:R188) -> 0.2396365255
B190: Waiting time threshold adjustment
B191: Flagfall (no of trips) | D191: =D175 -> 54674.13506 | E191: 54289.62595 | F191: 55826.41797 | G191: 59200.19066 | H191: 59916.43172 | I191: 42476.88188 | J191: 38725.0553 | K191: 45046.8031 | L191: 55069.25712 | M191: 63035.7722 | N191: 73962.00271 | O191: 97525.43387 | P191: 90128.80489 | Q191: 39228.71145 | R191: =SUM(D191:Q191) -> 829105.5239
B192: Standard kilometre charge (kms) | D192: =(D178-D194)*AVERAGE(Sim_template!$F$169:$G$169)*D184+D187 -> 289359.3738 | E192: =(E178-E194)*AVERAGE(Sim_template!$F$169:$G$169)*E184+E187 -> 287324.3839 | F192: =(F178-F194)*AVERAGE(Sim_template!$F$169:$G$169)*F184+F187 -> 295457.7577 | G192: =(G178-G194)*AVERAGE(Sim_template!$F$169:$G$169)*G184+G187 -> 313313.2345 | H192: =(H178-H194)*AVERAGE(Sim_template!$F$169:$G$169)*H184+H187 -> 317103.8947 | I192: =(I178-I194)*AVERAGE(Sim_template!$F$169:$G$169)*I184+I187 -> 224806.1891 | J192: =(J178-J194)*AVERAGE(Sim_template!$F$169:$G$169)*J184+J187 -> 204949.8861 | K192: =(K178-K194)*AVERAGE(Sim_template!$F$169:$G$169)*K184+K187 -> 198672.7777 | L192: =(L178-L194)*AVERAGE(Sim_template!$F$169:$G$169)*L184+L187 -> 242875.4435 | M192: =(M178-M194)*AVERAGE(Sim_template!$F$169:$G$169)*M184+M187 -> 278010.6711 | N192: =(N178-N194)*AVERAGE(Sim_template!$F$169:$G$169)*N184+N187 -> 326199.3197 | O192: =(O178-O194)*AVERAGE(Sim_template!$F$169:$G$169)*O184+O187 -> 344098.0938 | P192: =(P178-P194)*AVERAGE(Sim_template!$F$169:$G$169)*P184+P187 -> 212000.4237 | Q192: =(Q178-Q194)*AVERAGE(Sim_template!$F$169:$G$169)*Q184+Q187 -> 173012.8785 | R192: =SUM(D192:Q192) -> 3707184.328
B193: Night kilometre charge (kms) | D193: =(D178-D194)*AVERAGE(Sim_template!$F$169:$G$169)*(1-D184)+D188 -> 32151.04154 | E193: =(E178-E194)*AVERAGE(Sim_template!$F$169:$G$169)*(1-E184)+E188 -> 31924.93155 | F193: =(F178-F194)*AVERAGE(Sim_template!$F$169:$G$169)*(1-F184)+F188 -> 32828.63974 | G193: =(G178-G194)*AVERAGE(Sim_template!$F$169:$G$169)*(1-G184)+G188 -> 34812.58162 | H193: =(H178-H194)*AVERAGE(Sim_template!$F$169:$G$169)*(1-H184)+H188 -> 35233.76607 | I193: =(I178-I194)*AVERAGE(Sim_template!$F$169:$G$169)*(1-I184)+I188 -> 24978.46545 | J193: =(J178-J194)*AVERAGE(Sim_template!$F$169:$G$169)*(1-J184)+J188 -> 22772.20957 | K193: =(K178-K194)*AVERAGE(Sim_template!$F$169:$G$169)*(1-K184)+K188 -> 66224.25924 | L193: =(L178-L194)*AVERAGE(Sim_template!$F$169:$G$169)*(1-L184)+L188 -> 80958.48115 | M193: =(M178-M194)*AVERAGE(Sim_template!$F$169:$G$169)*(1-M184)+M188 -> 92670.2237 | N193: =(N178-N194)*AVERAGE(Sim_template!$F$169:$G$169)*(1-N184)+N188 -> 108733.1066 | O193: =(O178-O194)*AVERAGE(Sim_template!$F$169:$G$169)*(1-O184)+O188 -> 229398.7292 | P193: =(P178-P194)*AVERAGE(Sim_template!$F$169:$G$169)*(1-P184)+P188 -> 318000.6356 | Q193: =(Q178-Q194)*AVERAGE(Sim_template!$F$169:$G$169)*(1-Q184)+Q188 -> 57670.9595 | R193: 1168358.03
B194: Waiting time hours | D194: =D178*(1+(Sim_template!$N$15-Sim_template!$F$169)/Sim_template!$F$169) -> 4727.152909 | E194: =E178*(1+(Sim_template!$N$15-Sim_template!$F$169)/Sim_template!$F$169) -> 4693.908061 | F194: =F178*(1+(Sim_template!$N$15-Sim_template!$F$169)/Sim_template!$F$169) -> 4826.779863 | G194: =G178*(1+(Sim_template!$N$15-Sim_template!$F$169)/Sim_template!$F$169) -> 5118.477928 | H194: =H178*(1+(Sim_template!$N$15-Sim_template!$F$169)/Sim_template!$F$169) -> 5180.404486 | I194: =I178*(1+(Sim_template!$N$15-Sim_template!$F$169)/Sim_template!$F$169) -> 3672.572333 | J194: =J178*(1+(Sim_template!$N$15-Sim_template!$F$169)/Sim_template!$F$169) -> 3348.187541 | K194: =K178*(1+(Sim_template!$N$15-Sim_template!$F$169)/Sim_template!$F$169) -> 3894.769 | L194: =L178*(1+(Sim_template!$N$15-Sim_template!$F$169)/Sim_template!$F$169) -> 4761.315359 | M194: =M178*(1+(Sim_template!$N$15-Sim_template!$F$169)/Sim_template!$F$169) -> 5450.104216 | N194: =N178*(1+(Sim_template!$N$15-Sim_template!$F$169)/Sim_template!$F$169) -> 6394.791539 | O194: =O178*(1+(Sim_template!$N$15-Sim_template!$F$169)/Sim_template!$F$169) -> 8432.097517 | P194: =P178*(1+(Sim_template!$N$15-Sim_template!$F$169)/Sim_template!$F$169) -> 7792.581296 | Q194: =Q178*(1+(Sim_template!$N$15-Sim_template!$F$169)/Sim_template!$F$169) -> 3391.733903 | R194: 71684.87595
B195: Booking fee (number) | D195: =D179 -> 10934.82701 | E195: =E179 -> 10857.92519 | F195: 11165.28359 | G195: 11840.03813 | H195: 11983.28634 | I195: 8495.376375 | J195: 7745.011059 | K195: 9009.360619 | L195: 11013.85142 | M195: 12607.15444 | N195: 14792.40054 | O195: 19505.08677 | P195: 18025.76098 | Q195: 7845.742291 | R195: 165821.1048

Sheet Inputs and assumptions
U1: Source/Notes
A2: Assumptions by shift
A3: Day | B3: Description | C3: Unit | D3: Monday | E3: Tuesday | F3: Wednesday | G3: Thursday | H3: Friday | I3: Saturday | J3: Sunday | K3: Monday | L3: Tuesday | M3: Wednesday | N3: Thursday | O3: Friday | P3: Saturday | Q3: Sunday
A4: Shift | D4: Day | E4: Day | F4: Day | G4: Day | H4: Day | I4: Day | J4: Day | K4: Night | L4: Night | M4: Night | N4: Night | O4: Night | P4: Night | Q4: Night | S4: DO NOT DELETE
A5: Price elasticity of demand | B5: Impact of a 1% price decrease on demand | C5: Unit | D5: 0.8 | E5: 0.8 | F5: 0.8 | G5: 0.8 | H5: 0.8 | I5: 0.8 | J5: 0.8 | K5: 0.8 | L5: 0.8 | M5: 0.8 | N5: 0.8 | O5: 0.8 | P5: 0.8 | Q5: 0.8 | S5: Yes
A6: Weekend labour cost premium applied | B6: Yes if the shift is a weekend | C6: Yes/No | D6: No | E6: No | F6: No | G6: No | H6: No | I6: Yes | J6: Yes | K6: No | L6: No | M6: No | N6: No | O6: Yes | P6: Yes | Q6: Yes | S6: No
A7: Revenue per taxi | B7: Revenue per taxi | C7: $ | D7: 263.8 | E7: 259.5 | F7: 264.1 | G7: 268.6 | H7: 282.9 | I7: 276.2 | J7: 279 | K7: 258.9 | L7: 283 | M7: 309.3 | N7: 341.2 | O7: 423.4 | P7: 426.7 | Q7: 275 | U7: CIE survey undertaken in October 2011 (including GST)
A8: Share of standard taxis on the road | B8: The proportion of non-WAT taxis on the road | C8: Per cent | D8: 80.51806543 | E8: 81.27663018 | F8: 82.12163046 | G8: 85.62553515 | H8: 82.28093073 | I8: 59.74686969 | J8: 53.92299986 | K8: 65.29732991 | L8: 73.02747428 | M8: 76.48401104 | N8: 81.35104533 | O8: 87.932784 | P8: 82.45657332 | Q8: 53.53463517 | U8: Sourced from CIE Survey 2012, based on network data provided by Combined Communications Networks and adjusted by the CIE.
A9: Share of current trips at standard distance rate (10 pm - 6 am) | B9: The proportion of trips in each shift for which the standard distance rate currently applies (rather than the night time distance rate) | C9: Per cent | D9: 0.9 | E9: 0.9 | F9: 0.9 | G9: 0.9 | H9: 0.9 | I9: 0.9 | J9: 0.9 | K9: 0.75 | L9: 0.75 | M9: 0.75 | N9: 0.75 | O9: 0.6 | P9: 0.4 | Q9: 0.75
A10: If the surcharge hours of operation changed to | B10: =Sim_template!T165 -> 12 am until 5 am | C10: Per cent | D10: 0.95 | E10: 0.95 | F10: 0.95 | G10: 0.95 | H10: 0.95 | I10: 0.95 | J10: 0.95 | K10: 0.2 | L10: 0.2 | M10: 0.2 | N10: 0.2 | O10: 0.15 | P10: 0.05 | Q10: 0.2
A11: =A10 -> If the surcharge hours of operation changed to | B11: =Sim_template!T164 -> 5 pm until 5 am | C11: Per cent | D11: 0.95 | E11: 0.95 | F11: 0.95 | G11: 0.95 | H11: 0.95 | I11: 0.95 | J11: 0.95 | K11: 0.85 | L11: 0.85 | M11: 0.85 | N11: 0.85 | O11: 0.7 | P11: 0.5 | Q11: 0.85
A12: W_base | B12: Baseline waiting time | C12: Minutes | D12: 7.933993399 | E12: 7.933993399 | F12: 7.933993399 | G12: 7.933993399 | H12: 7.731132075 | I12: 7.731132075 | J12: 7.7125 | K12: 7.060283688 | L12: 7.060283688 | M12: 7.060283688 | N12: 7.060283688 | O12: 9.166112957 | P12: 9.166112957 | Q12: 9.954545455 | U12: IPART 2012 Survey (Taverner)
A13: Maximum proportion of taxis on the road for each shift | D13: =$C$55+MAX(D8-PERCENTILE($D$8:$Q$8,$C$57),0)/(MAX($D$8:$Q$8)-PERCENTILE($D$8:$Q$8,$C$57))*$C$56 -> 0.8285193593 | E13: =$C$55+MAX(E8-PERCENTILE($D$8:$Q$8,$C$57),0)/(MAX($D$8:$Q$8)-PERCENTILE($D$8:$Q$8,$C$57))*$C$56 -> 0.8348091526 | F13: 0.8418156435 | G13: 0.8708689789 | H13: 0.843136514 | I13: 0.76 | J13: 0.76 | K13: 0.76 | L13: 0.7664096058 | M13: 0.7950701803 | N13: 0.8354261809 | O13: 0.89 | P13: 0.8445928901 | Q13: 0.76
B14: 2012/13 Regulated Fares (including GST)
B15: Flagfall ($) | C15: 3.5 | F15: Colour coding
B16: Standard kilometre charge ($/km) | C16: 2.14 | F16: Input data
B17: Night kilometre charge ($/km) | C17: =ROUND(2.568,2) -> 2.57 | F17: Assumptions
B18: Waiting time ($/hour when vehicle slower than 26km/hour) | C18: 55.3
B19: Booking fee ($/booking) | C19: 2.4
B20: GST | C20: 0.1
B22: Costs of a standard taxi (excluding GST) ($2011/12)
B23: Labour cost ($/hour) | C23: =H31 -> 10 | F23: Operator costs (/taxi/yr) | H23: Amount ($2011/12) | I23: % Variable | U23: From CIE Survey 2012, for a weekday.
B24: Weekend labour cost premium ($ per hour) | C24: =H32 -> 2 | F24: Operator administration | H24: 9223
B25: Operator variable costs ($/km) | C25: =SUMPRODUCT(H25:H26,I25:I26)/C45 -> 0.09684579439 | F25: Maintenance | H25: 7562 | I25: 0.5
B26: Operator costs (fixed, non plate, $/year) | C26: =SUM(H24:H28) - SUMPRODUCT(H25:H26,I25:I26) -> 32621.5 | F26: Insurance | H26: 13163 | I26: 0.5
B27: Fuel cost ($/km) | C27: =H33/C45 -> 0.136588785 | F27: Vehicle lease | H27: 5805
B28: Cleaning ($/night shift) | C28: 11 | F28: Network fees | H28: 7231
B29: For calculation of peak licence value:
B30: Annual fixed costs to be apportioned over fewer shifts | C30: =H25+H26+H28-SUMPRODUCT(H25:H26,I25:I26) -> 17593.5 | F30: Driver costs | H30: ($2011/12)
B31: Cost escalation from 2011/12 to 2012/13 | C31: 0.037 | F31: Labour ($/hr) | H31: 10 | U31: Urban taxi cost index
F32: Weekend labour premium ($/hr) | H32: 2
B33: Current Taxi licence numbers | F33: Fuel ($/taxi/yr) | H33: 14615 | U33: From Transport for NSW Nov 2012
B34: Fringe | C34: 14 | F34: Cleaning ($/night shift) | H34: 11
B35: Unrestricted | C35: 4729
B36: WAT | C36: 618
B37: PAL | C37: 286
B38: Unrestricted + fringe | C38: =SUM(C34:C35) -> 4743
B39: Total non-PAL | C39: =SUM(C34:C36) -> 5361
B40: Total | C40: =SUM(C34:C37) -> 5647
B42: Other assumptions
B43: Hours per shift (no.) | C43: 10 | U43: CIE survey
B44: Average trip length (kms) | C44: 7 | U44: BTS survey, provided by IPART
B45: Total km travelled /taxi/year | C45: 107000 | D45: =C45/150000 -> 0.7133333333
B46: Number of shifts operated per year | C46: 552
B47: Share of trips with booking fee (per cent) | C47: 0.2 | U47: Based on IPART assumption for standard fare, confirmed by figures from CIE survey 2012.
B48: Speed when on waiting time (km/hour) | C48: =26/2 -> 13 | U48: Waiting time covers all speeds from 0 to 26 kilometres per hour. Based on half of maximum speed for waiting time.
B49: Average speed (km/hour) | C49: 32 | F49: Meter data | U49: Calibrated to match occupancy figures from meter data.
B50: Revenue at waiting time rate/revenue at dist. rate | C50: =H52/H53 -> 0.3820331681 | F50: Total km | H50: 5141146
B51: Minutes on waiting time rate (/trip) | C51: =((C44*C16)*C50/(C18+C50*C48*C16))*60 -> 5.208266047 | F51: Occupied km | H51: 2577606 | U51: Calculation of waiting time minutes based on meter data showing waiting revenue against distance revenue.
B52: Kms on distance rate (/trip) | C52: =C44-C51/60*C48 -> 5.871542356 | F52: Revenue at time rate ($2011/12) | H52: 1990899
B53: Multiplier for occupied to total kms for a trip | C53: =H50/H51 -> 1.994542998 | F53: Revenue at distance rate ($2010/11) | H53: 5211325 | U53: Based on meter data records provided by the Australian Taxi Drive Association. Measures total kilometres versus occupied kms.
B54: Value of time ($/hour) | C54: 30 | U54: Standard values of time used in economic appraisals are lower (around $15). However, taxi users are likely to have a higher value of time.
B55: Share of cabs at which constraint on number of cabs becomes binding | C55: 0.76 | U55: Key assumption - based on share of trips at which revenue per cab begins to increase and hence licence constraint becomes important.
B56: Increase in constraint for highest demand shift (%) | C56: 0.13
B57: Per cent of shifts to which higher constraint not applied | C57: 0.3
B58: Slope of the supply curve | C58: 45
B59: Standard deviation of expected shift revenue | C59: =12.5240326851699*2 -> 25.04806537
B60: Calibration constant to account for rising marginal costs | C60: =C58*3/4 -> 33.75 | U60: Required because we have average cost data, therefore need to reduce the fixed component so that fixed + variable = average
B61: Flat or upward sloping cost curve | C61: Upward sloping
B62: For calculation of peak licence value: | L62: DO NOT DELETE
B63: What revenue premium can peak licences obtain by working across best part of shifts? | C63: 0.085 | L63: Flat | U63: This is set to align the peak licence value to that observed.
B64: Of shifts available, what per cent do peak licences do (%) | C64: 0.9 | L64: Upward sloping
B66: Increase in demand per taxi 2012 | C66: 0
B69: For fare change calculations
B70: Fuel cost 2012/13 inc GST | C70: ='Inputs and assumptions'!C27*1.1*(1+'Inputs and assumptions'!C31) -> 0.1558068271 | D70: Source
B71: Night speed waiting rate | C71: 0 | D71: Assumption
B72: Night - Revenue at waiting time rate/revenue at dist. rate | C72: 0.1 | D72: Assumption
B73: Night Speed when on waiting time (km/hour) | C73: 45 | D73: Assumption

Sheet Base model
A2: CALIBRATION OF MODEL PARAMETERS
A3: Day | B3: Description | C3: Unit | J3: Monday | K3: Tuesday | L3: Wednesday | M3: Thursday | N3: Friday | O3: Saturday | P3: Sunday | Q3: Monday | R3: Tuesday | S3: Wednesday | T3: Thursday | U3: Friday | V3: Saturday | W3: Sunday
A4: Shift | J4: Day | K4: Day | L4: Day | M4: Day | N4: Day | O4: Day | P4: Day | Q4: Night | R4: Night | S4: Night | T4: Night | U4: Night | V4: Night | W4: Night
A5: Revenue adjustment for fare increases and demand | B5: Revenue adjustment for price increase from July 2012 | C5: Per cent | J5: =(1+'Inputs and assumptions'!$C$31)*(1+'Inputs and assumptions'!$C$66) -> 1.037 | K5: =(1+'Inputs and assumptions'!$C$31)*(1+'Inputs and assumptions'!$C$66) -> 1.037 | L5: =(1+'Inputs and assumptions'!$C$31)*(1+'Inputs and assumptions'!$C$66) -> 1.037 | M5: =(1+'Inputs and assumptions'!$C$31)*(1+'Inputs and assumptions'!$C$66) -> 1.037 | N5: =(1+'Inputs and assumptions'!$C$31)*(1+'Inputs and assumptions'!$C$66) -> 1.037 | O5: =(1+'Inputs and assumptions'!$C$31)*(1+'Inputs and assumptions'!$C$66) -> 1.037 | P5: =(1+'Inputs and assumptions'!$C$31)*(1+'Inputs and assumptions'!$C$66) -> 1.037 | Q5: =(1+'Inputs and assumptions'!$C$31)*(1+'Inputs and assumptions'!$C$66) -> 1.037 | R5: =(1+'Inputs and assumptions'!$C$31)*(1+'Inputs and assumptions'!$C$66) -> 1.037 | S5: =(1+'Inputs and assumptions'!$C$31)*(1+'Inputs and assumptions'!$C$66) -> 1.037 | T5: =(1+'Inputs and assumptions'!$C$31)*(1+'Inputs and assumptions'!$C$66) -> 1.037 | U5: =(1+'Inputs and assumptions'!$C$31)*(1+'Inputs and assumptions'!$C$66) -> 1.037 | V5: =(1+'Inputs and assumptions'!$C$31)*(1+'Inputs and assumptions'!$C$66) -> 1.037 | W5: =(1+'Inputs and assumptions'!$C$31)*(1+'Inputs and assumptions'!$C$66) -> 1.037 | X5: now multiplicate
A6: T_max | B6: The maximum number of taxis, based on the number of taxi plates | C6: No. | J6: ='Inputs and assumptions'!$C$39 -> 5361 | K6: ='Inputs and assumptions'!$C$39 -> 5361 | L6: ='Inputs and assumptions'!$C$39 -> 5361 | M6: ='Inputs and assumptions'!$C$39 -> 5361 | N6: ='Inputs and assumptions'!$C$39 -> 5361 | O6: ='Inputs and assumptions'!$C$39 -> 5361 | P6: ='Inputs and assumptions'!$C$39 -> 5361 | Q6: ='Inputs and assumptions'!$C$40 -> 5647 | R6: ='Inputs and assumptions'!$C$40 -> 5647 | S6: ='Inputs and assumptions'!$C$40 -> 5647 | T6: ='Inputs and assumptions'!$C$40 -> 5647 | U6: ='Inputs and assumptions'!$C$40 -> 5647 | V6: ='Inputs and assumptions'!$C$40 -> 5647 | W6: ='Inputs and assumptions'!$C$40 -> 5647 | X6: ok
A7: T_base | B7: The number of taxis actually on the road, based on network data | C7: No. | J7: ='Inputs and assumptions'!D8/100*J6 -> 4316.573488 | K7: ='Inputs and assumptions'!E8/100*K6 -> 4357.240144 | L7: ='Inputs and assumptions'!F8/100*L6 -> 4402.540609 | M7: ='Inputs and assumptions'!G8/100*M6 -> 4590.38494 | N7: ='Inputs and assumptions'!H8/100*N6 -> 4411.080696 | O7: ='Inputs and assumptions'!I8/100*O6 -> 3203.029684 | P7: ='Inputs and assumptions'!J8/100*P6 -> 2890.812023 | Q7: ='Inputs and assumptions'!K8/100*Q6 -> 3687.34022 | R7: ='Inputs and assumptions'!L8/100*R6 -> 4123.861473 | S7: ='Inputs and assumptions'!M8/100*S6 -> 4319.052103 | T7: ='Inputs and assumptions'!N8/100*T6 -> 4593.89353 | U7: ='Inputs and assumptions'!O8/100*U6 -> 4965.564312 | V7: ='Inputs and assumptions'!P8/100*V6 -> 4656.322695 | W7: ='Inputs and assumptions'!Q8/100*W6 -> 3023.100848 | X7: ok
A8: T_max_effective | B8: The maximum effective number of taxis on the road | C8: No. | J8: =('Inputs and assumptions'!$C$55+MAX('Inputs and assumptions'!D8-PERCENTILE('Inputs and assumptions'!$D$8:$Q$8,'Inputs and assumptions'!$C$57),0)/(MAX('Inputs and assumptions'!$D$8:$Q$8)-PERCENTILE('Inputs and assumptions'!$D$8:$Q$8,'Inputs and assumptions'!$C$57))*'Inputs and assumptions'!$C$56)*J6 -> 4441.692285 | K8: =('Inputs and assumptions'!$C$55+MAX('Inputs and assumptions'!E8-PERCENTILE('Inputs and assumptions'!$D$8:$Q$8,'Inputs and assumptions'!$C$57),0)/(MAX('Inputs and assumptions'!$D$8:$Q$8)-PERCENTILE('Inputs and assumptions'!$D$8:$Q$8,'Inputs and assumptions'!$C$57))*'Inputs and assumptions'!$C$56)*K6 -> 4475.411867 | L8: =('Inputs and assumptions'!$C$55+MAX('Inputs and assumptions'!F8-PERCENTILE('Inputs and assumptions'!$D$8:$Q$8,'Inputs and assumptions'!$C$57),0)/(MAX('Inputs and assumptions'!$D$8:$Q$8)-PERCENTILE('Inputs and assumptions'!$D$8:$Q$8,'Inputs and assumptions'!$C$57))*'Inputs and assumptions'!$C$56)*L6 -> 4512.973665 | M8: =('Inputs and assumptions'!$C$55+MAX('Inputs and assumptions'!G8-PERCENTILE('Inputs and assumptions'!$D$8:$Q$8,'Inputs and assumptions'!$C$57),0)/(MAX('Inputs and assumptions'!$D$8:$Q$8)-PERCENTILE('Inputs and assumptions'!$D$8:$Q$8,'Inputs and assumptions'!$C$57))*'Inputs and assumptions'!$C$56)*M6 -> 4668.728596 | N8: =('Inputs and assumptions'!$C$55+MAX('Inputs and assumptions'!H8-PERCENTILE('Inputs and assumptions'!$D$8:$Q$8,'Inputs and assumptions'!$C$57),0)/(MAX('Inputs and assumptions'!$D$8:$Q$8)-PERCENTILE('Inputs and assumptions'!$D$8:$Q$8,'Inputs and assumptions'!$C$57))*'Inputs and assumptions'!$C$56)*N6 -> 4520.054851 | O8: =('Inputs and assumptions'!$C$55+MAX('Inputs and assumptions'!I8-PERCENTILE('Inputs and assumptions'!$D$8:$Q$8,'Inputs and assumptions'!$C$57),0)/(MAX('Inputs and assumptions'!$D$8:$Q$8)-PERCENTILE('Inputs and assumptions'!$D$8:$Q$8,'Inputs and assumptions'!$C$57))*'Inputs and assumptions'!$C$56)*O6 -> 4074.36 | P8: =('Inputs and assumptions'!$C$55+MAX('Inputs and assumptions'!J8-PERCENTILE('Inputs and assumptions'!$D$8:$Q$8,'Inputs and assumptions'!$C$57),0)/(MAX('Inputs and assumptions'!$D$8:$Q$8)-PERCENTILE('Inputs and assumptions'!$D$8:$Q$8,'Inputs and assumptions'!$C$57))*'Inputs and assumptions'!$C$56)*P6 -> 4074.36 | Q8: =('Inputs and assumptions'!$C$55+MAX('Inputs and assumptions'!K8-PERCENTILE('Inputs and assumptions'!$D$8:$Q$8,'Inputs and assumptions'!$C$57),0)/(MAX('Inputs and assumptions'!$D$8:$Q$8)-PERCENTILE('Inputs and assumptions'!$D$8:$Q$8,'Inputs and assumptions'!$C$57))*'Inputs and assumptions'!$C$56)*Q6 -> 4291.72 | R8: =('Inputs and assumptions'!$C$55+MAX('Inputs and assumptions'!L8-PERCENTILE('Inputs and assumptions'!$D$8:$Q$8,'Inputs and assumptions'!$C$57),0)/(MAX('Inputs and assumptions'!$D$8:$Q$8)-PERCENTILE('Inputs and assumptions'!$D$8:$Q$8,'Inputs and assumptions'!$C$57))*'Inputs and assumptions'!$C$56)*R6 -> 4327.915044 | S8: =('Inputs and assumptions'!$C$55+MAX('Inputs and assumptions'!M8-PERCENTILE('Inputs and assumptions'!$D$8:$Q$8,'Inputs and assumptions'!$C$57),0)/(MAX('Inputs and assumptions'!$D$8:$Q$8)-PERCENTILE('Inputs and assumptions'!$D$8:$Q$8,'Inputs and assumptions'!$C$57))*'Inputs and assumptions'!$C$56)*S6 -> 4489.761308 | T8: =('Inputs and assumptions'!$C$55+MAX('Inputs and assumptions'!N8-PERCENTILE('Inputs and assumptions'!$D$8:$Q$8,'Inputs and assumptions'!$C$57),0)/(MAX('Inputs and assumptions'!$D$8:$Q$8)-PERCENTILE('Inputs and assumptions'!$D$8:$Q$8,'Inputs and assumptions'!$C$57))*'Inputs and assumptions'!$C$56)*T6 -> 4717.651643 | U8: =('Inputs and assumptions'!$C$55+MAX('Inputs and assumptions'!O8-PERCENTILE('Inputs and assumptions'!$D$8:$Q$8,'Inputs and assumptions'!$C$57),0)/(MAX('Inputs and assumptions'!$D$8:$Q$8)-PERCENTILE('Inputs and assumptions'!$D$8:$Q$8,'Inputs and assumptions'!$C$57))*'Inputs and assumptions'!$C$56)*U6 -> 5025.83 | V8: =('Inputs and assumptions'!$C$55+MAX('Inputs and assumptions'!P8-PERCENTILE('Inputs and assumptions'!$D$8:$Q$8,'Inputs and assumptions'!$C$57),0)/(MAX('Inputs and assumptions'!$D$8:$Q$8)-PERCENTILE('Inputs and assumptions'!$D$8:$Q$8,'Inputs and assumptions'!$C$57))*'Inputs and assumptions'!$C$56)*V6 -> 4769.41605 | W8: =('Inputs and assumptions'!$C$55+MAX('Inputs and assumptions'!Q8-PERCENTILE('Inputs and assumptions'!$D$8:$Q$8,'Inputs and assumptions'!$C$57),0)/(MAX('Inputs and assumptions'!$D$8:$Q$8)-PERCENTILE('Inputs and assumptions'!$D$8:$Q$8,'Inputs and assumptions'!$C$57))*'Inputs and assumptions'!$C$56)*W6 -> 4291.72 | X8: =('Inputs and assumptions'!$C$55+MAX('Inputs and assumptions'!R8-PERCENTILE('Inputs and assumptions'!$D$8:$Q$8,'Inputs and assumptions'!$C$57),0)/(MAX('Inputs and assumptions'!$D$8:$Q$8)-PERCENTILE('Inputs and assumptions'!$D$8:$Q$8,'Inputs and assumptions'!$C$57))*'Inputs and assumptions'!$C$56)*X6 -> 
A9: Q_base | B9: Baseline quantity of taxis demanded per shift | C9: Kms occupied | J9: =J7*'Inputs and assumptions'!D7/J13/$B$20*J5 -> 382718.9454 | K9: =K7*'Inputs and assumptions'!E7/K13/$B$20*K5 -> 380027.3817 | L9: =L7*'Inputs and assumptions'!F7/L13/$B$20*L5 -> 390784.9258 | M9: =M7*'Inputs and assumptions'!G7/M13/$B$20*M5 -> 414401.3346 | N9: =N7*'Inputs and assumptions'!H7/N13/$B$20*N5 -> 419415.022 | O9: =O7*'Inputs and assumptions'!I7/O13/$B$20*O5 -> 297338.1731 | P9: =P7*'Inputs and assumptions'!J7/P13/$B$20*P5 -> 271075.3871 | Q9: =Q7*'Inputs and assumptions'!K7/Q13/$B$20*Q5 -> 315327.6217 | R9: =R7*'Inputs and assumptions'!L7/R13/$B$20*R5 -> 385484.7998 | S9: =S7*'Inputs and assumptions'!M7/S13/$B$20*S5 -> 441250.4054 | T9: =T7*'Inputs and assumptions'!N7/T13/$B$20*T5 -> 517734.0189 | U9: =U7*'Inputs and assumptions'!O7/U13/$B$20*U5 -> 682678.0371 | V9: =V7*'Inputs and assumptions'!P7/V13/$B$20*V5 -> 630901.6342 | W9: =W7*'Inputs and assumptions'!Q7/W13/$B$20*W5 -> 274600.9802 | X9: ok - see check below. Forumula simplified, GST adjustment no longer hard-coded
B10: Demand intercept with y axis | C10: Kms occupied | J10: =J9+J11*J13+'Inputs and assumptions'!D12*J12 -> 750754.6418 | K10: =K9+K11*K13+'Inputs and assumptions'!E12*K12 -> 745474.7778 | L10: =L9+L11*L13+'Inputs and assumptions'!F12*L12 -> 766577.1462 | M10: =M9+M11*M13+'Inputs and assumptions'!G12*M12 -> 812903.9058 | N10: =N9+N11*N13+'Inputs and assumptions'!H12*N12 -> 821005.5818 | O10: =O9+O11*O13+'Inputs and assumptions'!I12*O12 -> 582039.9533 | P10: =P9+P11*P13+'Inputs and assumptions'!J12*P12 -> 530527.6125 | Q10: =Q9+Q11*Q13+'Inputs and assumptions'!K12*Q12 -> 612163.2256 | R10: =R9+R11*R13+'Inputs and assumptions'!L12*R12 -> 748363.2967 | S10: =S9+S11*S13+'Inputs and assumptions'!M12*S12 -> 856624.1995 | T10: =T9+T11*T13+'Inputs and assumptions'!N12*T12 -> 1005106.135 | U10: =U9+U11*U13+'Inputs and assumptions'!O12*U12 -> 1351981.545 | V10: =V9+V11*V13+'Inputs and assumptions'!P12*V12 -> 1246928.967 | W10: =W9+W11*W13+'Inputs and assumptions'!Q12*W12 -> 549010.5928 | X10: ok
B11: Impact of price on demand kilometres | C11: Change in Q per extra dollar | J11: ='Inputs and assumptions'!D$5*J9/J13 -> 109156.5769 | K11: ='Inputs and assumptions'!E$5*K9/K13 -> 108388.9069 | L11: ='Inputs and assumptions'!F$5*L9/L13 -> 111457.1027 | M11: ='Inputs and assumptions'!G$5*M9/M13 -> 118192.8193 | N11: ='Inputs and assumptions'!H$5*N9/N13 -> 119622.7902 | O11: ='Inputs and assumptions'!I$5*O9/O13 -> 84804.83541 | P11: ='Inputs and assumptions'!J$5*P9/P13 -> 77314.33654 | Q11: ='Inputs and assumptions'!K$5*Q9/Q13 -> 88385.83826 | R11: ='Inputs and assumptions'!L$5*R9/R13 -> 108050.7854 | S11: ='Inputs and assumptions'!M$5*S9/S13 -> 123681.7972 | T11: ='Inputs and assumptions'!N$5*T9/T13 -> 145120.0343 | U11: ='Inputs and assumptions'!O$5*U9/U13 -> 188111.9187 | V11: ='Inputs and assumptions'!P$5*V9/V13 -> 170004.9267 | W11: ='Inputs and assumptions'!Q$5*W9/W13 -> 76970.22446 | X11: ok
B12: Impact of waiting time on demand kilometres | C12: Change in Q per extra minute | J12: =('Inputs and assumptions'!$C$54/'Inputs and assumptions'!$C$44)/60*J11 -> 7796.898352 | K12: =('Inputs and assumptions'!$C$54/'Inputs and assumptions'!$C$44)/60*K11 -> 7742.064775 | L12: =('Inputs and assumptions'!$C$54/'Inputs and assumptions'!$C$44)/60*L11 -> 7961.221624 | M12: =('Inputs and assumptions'!$C$54/'Inputs and assumptions'!$C$44)/60*M11 -> 8442.344237 | N12: =('Inputs and assumptions'!$C$54/'Inputs and assumptions'!$C$44)/60*N11 -> 8544.485015 | O12: =('Inputs and assumptions'!$C$54/'Inputs and assumptions'!$C$44)/60*O11 -> 6057.488243 | P12: =('Inputs and assumptions'!$C$54/'Inputs and assumptions'!$C$44)/60*P11 -> 5522.45261 | Q12: =('Inputs and assumptions'!$C$54/'Inputs and assumptions'!$C$44)/60*Q11 -> 6313.274161 | R12: =('Inputs and assumptions'!$C$54/'Inputs and assumptions'!$C$44)/60*R11 -> 7717.91324 | S12: =('Inputs and assumptions'!$C$54/'Inputs and assumptions'!$C$44)/60*S11 -> 8834.414088 | T12: =('Inputs and assumptions'!$C$54/'Inputs and assumptions'!$C$44)/60*T11 -> 10365.71673 | U12: =('Inputs and assumptions'!$C$54/'Inputs and assumptions'!$C$44)/60*U11 -> 13436.56562 | V12: =('Inputs and assumptions'!$C$54/'Inputs and assumptions'!$C$44)/60*V11 -> 12143.20905 | W12: =('Inputs and assumptions'!$C$54/'Inputs and assumptions'!$C$44)/60*W11 -> 5497.873176 | X12: ok
A13: P | B13: Price per kilometre of demand (excluding GST) | C13: $/km occupied | J13: =(('Inputs and assumptions'!$C$15+'Inputs and assumptions'!$C$47*'Inputs and assumptions'!$C$19)/'Inputs and assumptions'!$C$44+('Inputs and assumptions'!$C$16*'Inputs and assumptions'!D9+'Inputs and assumptions'!$C$17*(1-'Inputs and assumptions'!D9))*'Inputs and assumptions'!$C$52/'Inputs and assumptions'!$C$44+('Inputs and assumptions'!$C$51/60*'Inputs and assumptions'!$C$18)/'Inputs and assumptions'!$C$44)/$B$20 -> 2.804917165 | K13: =(('Inputs and assumptions'!$C$15+'Inputs and assumptions'!$C$47*'Inputs and assumptions'!$C$19)/'Inputs and assumptions'!$C$44+('Inputs and assumptions'!$C$16*'Inputs and assumptions'!E9+'Inputs and assumptions'!$C$17*(1-'Inputs and assumptions'!E9))*'Inputs and assumptions'!$C$52/'Inputs and assumptions'!$C$44+('Inputs and assumptions'!$C$51/60*'Inputs and assumptions'!$C$18)/'Inputs and assumptions'!$C$44)/$B$20 -> 2.804917165 | L13: =(('Inputs and assumptions'!$C$15+'Inputs and assumptions'!$C$47*'Inputs and assumptions'!$C$19)/'Inputs and assumptions'!$C$44+('Inputs and assumptions'!$C$16*'Inputs and assumptions'!F9+'Inputs and assumptions'!$C$17*(1-'Inputs and assumptions'!F9))*'Inputs and assumptions'!$C$52/'Inputs and assumptions'!$C$44+('Inputs and assumptions'!$C$51/60*'Inputs and assumptions'!$C$18)/'Inputs and assumptions'!$C$44)/$B$20 -> 2.804917165 | M13: =(('Inputs and assumptions'!$C$15+'Inputs and assumptions'!$C$47*'Inputs and assumptions'!$C$19)/'Inputs and assumptions'!$C$44+('Inputs and assumptions'!$C$16*'Inputs and assumptions'!G9+'Inputs and assumptions'!$C$17*(1-'Inputs and assumptions'!G9))*'Inputs and assumptions'!$C$52/'Inputs and assumptions'!$C$44+('Inputs and assumptions'!$C$51/60*'Inputs and assumptions'!$C$18)/'Inputs and assumptions'!$C$44)/$B$20 -> 2.804917165 | N13: =(('Inputs and assumptions'!$C$15+'Inputs and assumptions'!$C$47*'Inputs and assumptions'!$C$19)/'Inputs and assumptions'!$C$44+('Inputs and assumptions'!$C$16*'Inputs and assumptions'!H9+'Inputs and assumptions'!$C$17*(1-'Inputs and assumptions'!H9))*'Inputs and assumptions'!$C$52/'Inputs and assumptions'!$C$44+('Inputs and assumptions'!$C$51/60*'Inputs and assumptions'!$C$18)/'Inputs and assumptions'!$C$44)/$B$20 -> 2.804917165 | O13: =(('Inputs and assumptions'!$C$15+'Inputs and assumptions'!$C$47*'Inputs and assumptions'!$C$19)/'Inputs and assumptions'!$C$44+('Inputs and assumptions'!$C$16*'Inputs and assumptions'!I9+'Inputs and assumptions'!$C$17*(1-'Inputs and assumptions'!I9))*'Inputs and assumptions'!$C$52/'Inputs and assumptions'!$C$44+('Inputs and assumptions'!$C$51/60*'Inputs and assumptions'!$C$18)/'Inputs and assumptions'!$C$44)/$B$20 -> 2.804917165 | P13: =(('Inputs and assumptions'!$C$15+'Inputs and assumptions'!$C$47*'Inputs and assumptions'!$C$19)/'Inputs and assumptions'!$C$44+('Inputs and assumptions'!$C$16*'Inputs and assumptions'!J9+'Inputs and assumptions'!$C$17*(1-'Inputs and assumptions'!J9))*'Inputs and assumptions'!$C$52/'Inputs and assumptions'!$C$44+('Inputs and assumptions'!$C$51/60*'Inputs and assumptions'!$C$18)/'Inputs and assumptions'!$C$44)/$B$20 -> 2.804917165 | Q13: =(('Inputs and assumptions'!$C$15+'Inputs and assumptions'!$C$47*'Inputs and assumptions'!$C$19)/'Inputs and assumptions'!$C$44+('Inputs and assumptions'!$C$16*'Inputs and assumptions'!K9+'Inputs and assumptions'!$C$17*(1-'Inputs and assumptions'!K9))*'Inputs and assumptions'!$C$52/'Inputs and assumptions'!$C$44+('Inputs and assumptions'!$C$51/60*'Inputs and assumptions'!$C$18)/'Inputs and assumptions'!$C$44)/$B$20 -> 2.854100864 | R13: =(('Inputs and assumptions'!$C$15+'Inputs and assumptions'!$C$47*'Inputs and assumptions'!$C$19)/'Inputs and assumptions'!$C$44+('Inputs and assumptions'!$C$16*'Inputs and assumptions'!L9+'Inputs and assumptions'!$C$17*(1-'Inputs and assumptions'!L9))*'Inputs and assumptions'!$C$52/'Inputs and assumptions'!$C$44+('Inputs and assumptions'!$C$51/60*'Inputs and assumptions'!$C$18)/'Inputs and assumptions'!$C$44)/$B$20 -> 2.854100864 | S13: =(('Inputs and assumptions'!$C$15+'Inputs and assumptions'!$C$47*'Inputs and assumptions'!$C$19)/'Inputs and assumptions'!$C$44+('Inputs and assumptions'!$C$16*'Inputs and assumptions'!M9+'Inputs and assumptions'!$C$17*(1-'Inputs and assumptions'!M9))*'Inputs and assumptions'!$C$52/'Inputs and assumptions'!$C$44+('Inputs and assumptions'!$C$51/60*'Inputs and assumptions'!$C$18)/'Inputs and assumptions'!$C$44)/$B$20 -> 2.854100864 | T13: =(('Inputs and assumptions'!$C$15+'Inputs and assumptions'!$C$47*'Inputs and assumptions'!$C$19)/'Inputs and assumptions'!$C$44+('Inputs and assumptions'!$C$16*'Inputs and assumptions'!N9+'Inputs and assumptions'!$C$17*(1-'Inputs and assumptions'!N9))*'Inputs and assumptions'!$C$52/'Inputs and assumptions'!$C$44+('Inputs and assumptions'!$C$51/60*'Inputs and assumptions'!$C$18)/'Inputs and assumptions'!$C$44)/$B$20 -> 2.854100864 | U13: =(('Inputs and assumptions'!$C$15+'Inputs and assumptions'!$C$47*'Inputs and assumptions'!$C$19)/'Inputs and assumptions'!$C$44+('Inputs and assumptions'!$C$16*'Inputs and assumptions'!O9+'Inputs and assumptions'!$C$17*(1-'Inputs and assumptions'!O9))*'Inputs and assumptions'!$C$52/'Inputs and assumptions'!$C$44+('Inputs and assumptions'!$C$51/60*'Inputs and assumptions'!$C$18)/'Inputs and assumptions'!$C$44)/$B$20 -> 2.903284563 | V13: =(('Inputs and assumptions'!$C$15+'Inputs and assumptions'!$C$47*'Inputs and assumptions'!$C$19)/'Inputs and assumptions'!$C$44+('Inputs and assumptions'!$C$16*'Inputs and assumptions'!P9+'Inputs and assumptions'!$C$17*(1-'Inputs and assumptions'!P9))*'Inputs and assumptions'!$C$52/'Inputs and assumptions'!$C$44+('Inputs and assumptions'!$C$51/60*'Inputs and assumptions'!$C$18)/'Inputs and assumptions'!$C$44)/$B$20 -> 2.968862828 | W13: =(('Inputs and assumptions'!$C$15+'Inputs and assumptions'!$C$47*'Inputs and assumptions'!$C$19)/'Inputs and assumptions'!$C$44+('Inputs and assumptions'!$C$16*'Inputs and assumptions'!Q9+'Inputs and assumptions'!$C$17*(1-'Inputs and assumptions'!Q9))*'Inputs and assumptions'!$C$52/'Inputs and assumptions'!$C$44+('Inputs and assumptions'!$C$51/60*'Inputs and assumptions'!$C$18)/'Inputs and assumptions'!$C$44)/$B$20 -> 2.854100864 | X13: ok - see check below. Very long formula!! GST adjustment no longer hard-coded
A14: c | B14: Variable cost | C14: $/km occupied | J14: =('Inputs and assumptions'!C25+'Inputs and assumptions'!C27)*'Inputs and assumptions'!C53*(1+'Inputs and assumptions'!$C$31) -> 0.4828223323 | K14: =J14 -> 0.4828223323 | L14: =K14 -> 0.4828223323 | M14: 0.4828223323 | N14: 0.4828223323 | O14: 0.4828223323 | P14: 0.4828223323 | Q14: 0.4828223323 | R14: 0.4828223323 | S14: 0.4828223323 | T14: 0.4828223323 | U14: 0.4828223323 | V14: 0.4828223323 | W14: 0.4828223323 | X14: ok
B15: Fixed component of shift costs | C15: $/taxi/shift | J15: =(('Inputs and assumptions'!$C$23+IF('Inputs and assumptions'!D6="Yes",'Inputs and assumptions'!$C$24,0))*'Inputs and assumptions'!$C$43+'Inputs and assumptions'!$C$26/'Inputs and assumptions'!$C$46)*(1+'Inputs and assumptions'!$C$31)-IF('Inputs and assumptions'!$C$61="Flat",0,'Inputs and assumptions'!$C$60) -> 131.2335063 | K15: =(('Inputs and assumptions'!$C$23+IF('Inputs and assumptions'!E6="Yes",'Inputs and assumptions'!$C$24,0))*'Inputs and assumptions'!$C$43+'Inputs and assumptions'!$C$26/'Inputs and assumptions'!$C$46)*(1+'Inputs and assumptions'!$C$31)-IF('Inputs and assumptions'!$C$61="Flat",0,'Inputs and assumptions'!$C$60) -> 131.2335063 | L15: =(('Inputs and assumptions'!$C$23+IF('Inputs and assumptions'!F6="Yes",'Inputs and assumptions'!$C$24,0))*'Inputs and assumptions'!$C$43+'Inputs and assumptions'!$C$26/'Inputs and assumptions'!$C$46)*(1+'Inputs and assumptions'!$C$31)-IF('Inputs and assumptions'!$C$61="Flat",0,'Inputs and assumptions'!$C$60) -> 131.2335063 | M15: =(('Inputs and assumptions'!$C$23+IF('Inputs and assumptions'!G6="Yes",'Inputs and assumptions'!$C$24,0))*'Inputs and assumptions'!$C$43+'Inputs and assumptions'!$C$26/'Inputs and assumptions'!$C$46)*(1+'Inputs and assumptions'!$C$31)-IF('Inputs and assumptions'!$C$61="Flat",0,'Inputs and assumptions'!$C$60) -> 131.2335063 | N15: =(('Inputs and assumptions'!$C$23+IF('Inputs and assumptions'!H6="Yes",'Inputs and assumptions'!$C$24,0))*'Inputs and assumptions'!$C$43+'Inputs and assumptions'!$C$26/'Inputs and assumptions'!$C$46)*(1+'Inputs and assumptions'!$C$31)-IF('Inputs and assumptions'!$C$61="Flat",0,'Inputs and assumptions'!$C$60) -> 131.2335063 | O15: =(('Inputs and assumptions'!$C$23+IF('Inputs and assumptions'!I6="Yes",'Inputs and assumptions'!$C$24,0))*'Inputs and assumptions'!$C$43+'Inputs and assumptions'!$C$26/'Inputs and assumptions'!$C$46)*(1+'Inputs and assumptions'!$C$31)-IF('Inputs and assumptions'!$C$61="Flat",0,'Inputs and assumptions'!$C$60) -> 151.9735063 | P15: =(('Inputs and assumptions'!$C$23+IF('Inputs and assumptions'!J6="Yes",'Inputs and assumptions'!$C$24,0))*'Inputs and assumptions'!$C$43+'Inputs and assumptions'!$C$26/'Inputs and assumptions'!$C$46)*(1+'Inputs and assumptions'!$C$31)-IF('Inputs and assumptions'!$C$61="Flat",0,'Inputs and assumptions'!$C$60) -> 151.9735063 | Q15: =(('Inputs and assumptions'!$C$23+IF('Inputs and assumptions'!K6="Yes",'Inputs and assumptions'!$C$24,0))*'Inputs and assumptions'!$C$43+'Inputs and assumptions'!$C$28+'Inputs and assumptions'!$C$26/'Inputs and assumptions'!$C$46)*(1+'Inputs and assumptions'!$C$31)-IF('Inputs and assumptions'!$C$61="Flat",0,'Inputs and assumptions'!$C$60) -> 142.6405063 | R15: =(('Inputs and assumptions'!$C$23+IF('Inputs and assumptions'!L6="Yes",'Inputs and assumptions'!$C$24,0))*'Inputs and assumptions'!$C$43+'Inputs and assumptions'!$C$28+'Inputs and assumptions'!$C$26/'Inputs and assumptions'!$C$46)*(1+'Inputs and assumptions'!$C$31)-IF('Inputs and assumptions'!$C$61="Flat",0,'Inputs and assumptions'!$C$60) -> 142.6405063 | S15: =(('Inputs and assumptions'!$C$23+IF('Inputs and assumptions'!M6="Yes",'Inputs and assumptions'!$C$24,0))*'Inputs and assumptions'!$C$43+'Inputs and assumptions'!$C$28+'Inputs and assumptions'!$C$26/'Inputs and assumptions'!$C$46)*(1+'Inputs and assumptions'!$C$31)-IF('Inputs and assumptions'!$C$61="Flat",0,'Inputs and assumptions'!$C$60) -> 142.6405063 | T15: =(('Inputs and assumptions'!$C$23+IF('Inputs and assumptions'!N6="Yes",'Inputs and assumptions'!$C$24,0))*'Inputs and assumptions'!$C$43+'Inputs and assumptions'!$C$28+'Inputs and assumptions'!$C$26/'Inputs and assumptions'!$C$46)*(1+'Inputs and assumptions'!$C$31)-IF('Inputs and assumptions'!$C$61="Flat",0,'Inputs and assumptions'!$C$60) -> 142.6405063 | U15: =(('Inputs and assumptions'!$C$23+IF('Inputs and assumptions'!O6="Yes",'Inputs and assumptions'!$C$24,0))*'Inputs and assumptions'!$C$43+'Inputs and assumptions'!$C$28+'Inputs and assumptions'!$C$26/'Inputs and assumptions'!$C$46)*(1+'Inputs and assumptions'!$C$31)-IF('Inputs and assumptions'!$C$61="Flat",0,'Inputs and assumptions'!$C$60) -> 163.3805063 | V15: =(('Inputs and assumptions'!$C$23+IF('Inputs and assumptions'!P6="Yes",'Inputs and assumptions'!$C$24,0))*'Inputs and assumptions'!$C$43+'Inputs and assumptions'!$C$28+'Inputs and assumptions'!$C$26/'Inputs and assumptions'!$C$46)*(1+'Inputs and assumptions'!$C$31)-IF('Inputs and assumptions'!$C$61="Flat",0,'Inputs and assumptions'!$C$60) -> 163.3805063 | W15: =(('Inputs and assumptions'!$C$23+IF('Inputs and assumptions'!Q6="Yes",'Inputs and assumptions'!$C$24,0))*'Inputs and assumptions'!$C$43+'Inputs and assumptions'!$C$28+'Inputs and assumptions'!$C$26/'Inputs and assumptions'!$C$46)*(1+'Inputs and assumptions'!$C$31)-IF('Inputs and assumptions'!$C$61="Flat",0,'Inputs and assumptions'!$C$60) -> 163.3805063 | X15: ok - see check below. Very long formula!!
B16: Variable component of fixed costs | C16: $/additional taxi per shift | J16: =IF('Inputs and assumptions'!$C$61="Flat",0.0000000000000001,'Inputs and assumptions'!$C$58/5000) -> 0.009 | K16: =IF('Inputs and assumptions'!$C$61="Flat",0.0000000000000001,'Inputs and assumptions'!$C$58/5000) -> 0.009 | L16: =IF('Inputs and assumptions'!$C$61="Flat",0.0000000000000001,'Inputs and assumptions'!$C$58/5000) -> 0.009 | M16: =IF('Inputs and assumptions'!$C$61="Flat",0.0000000000000001,'Inputs and assumptions'!$C$58/5000) -> 0.009 | N16: =IF('Inputs and assumptions'!$C$61="Flat",0.0000000000000001,'Inputs and assumptions'!$C$58/5000) -> 0.009 | O16: =IF('Inputs and assumptions'!$C$61="Flat",0.0000000000000001,'Inputs and assumptions'!$C$58/5000) -> 0.009 | P16: =IF('Inputs and assumptions'!$C$61="Flat",0.0000000000000001,'Inputs and assumptions'!$C$58/5000) -> 0.009 | Q16: =IF('Inputs and assumptions'!$C$61="Flat",0.0000000000000001,'Inputs and assumptions'!$C$58/5000) -> 0.009 | R16: =IF('Inputs and assumptions'!$C$61="Flat",0.0000000000000001,'Inputs and assumptions'!$C$58/5000) -> 0.009 | S16: =IF('Inputs and assumptions'!$C$61="Flat",0.0000000000000001,'Inputs and assumptions'!$C$58/5000) -> 0.009 | T16: =IF('Inputs and assumptions'!$C$61="Flat",0.0000000000000001,'Inputs and assumptions'!$C$58/5000) -> 0.009 | U16: =IF('Inputs and assumptions'!$C$61="Flat",0.0000000000000001,'Inputs and assumptions'!$C$58/5000) -> 0.009 | V16: =IF('Inputs and assumptions'!$C$61="Flat",0.0000000000000001,'Inputs and assumptions'!$C$58/5000) -> 0.009 | W16: =IF('Inputs and assumptions'!$C$61="Flat",0.0000000000000001,'Inputs and assumptions'!$C$58/5000) -> 0.009 | X16: flat demand curve gives Div0 error
B17: Waiting time constant | C17: Unit | J17: ='Inputs and assumptions'!D12*(J7-J9*J18) -> 24758.6356 | K17: =J17 -> 24758.6356 | L17: =K17 -> 24758.6356 | M17: 24758.6356 | N17: 24758.6356 | O17: 24758.6356 | P17: 24758.6356 | Q17: 24758.6356 | R17: 24758.6356 | S17: 24758.6356 | T17: 24758.6356 | U17: 24758.6356 | V17: 24758.6356 | W17: 24758.6356 | X17: formula correct (as per Description, with estimated base waiting time). Uses waiting time for Monday day. Stricktly speaking, shouldn't it use a weighted average waiting time?
B18: Constant to link occupied taxi kms to occupied taxis | C18: Unit (inverse of km per shift) | J18: =1/'Inputs and assumptions'!C49/'Inputs and assumptions'!C43 -> 0.003125 | K18: =J18 -> 0.003125 | L18: =K18 -> 0.003125 | M18: 0.003125 | N18: 0.003125 | O18: 0.003125 | P18: 0.003125 | Q18: 0.003125 | R18: 0.003125 | S18: 0.003125 | T18: 0.003125 | U18: 0.003125 | V18: 0.003125 | W18: 0.003125 | X18: assume this is correct - looks ok
J19: =RANK(J9,$J$9:$W$9,1) -> 6 | K19: 5 | L19: 8 | M19: 9 | N19: 10 | O19: 3 | P19: 1 | Q19: 4 | R19: 7 | S19: 11 | T19: 12 | U19: 14 | V19: 13 | W19: 2
A20: GST adjustor | B20: =(1+'Inputs and assumptions'!$C$20) -> 1.1 | J20: Day | Q20: Night
J21: M | K21: T | L21: W | M21: T | N21: F | O21: S | P21: S | Q21: M | R21: T | S21: W | T21: T | U21: F | V21: S | W21: S
C22: Average number of trips by day 2011/12 | J22: =J122/'Inputs and assumptions'!$C$44 -> 54996.31295 | K22: =K122/'Inputs and assumptions'!$C$44 -> 54712.50835 | L22: =L122/'Inputs and assumptions'!$C$44 -> 56270.38605 | M22: =M122/'Inputs and assumptions'!$C$44 -> 59879.05436 | N22: =N122/'Inputs and assumptions'!$C$44 -> 59935.56211 | O22: =O122/'Inputs and assumptions'!$C$44 -> 41327.38006 | P22: =P122/'Inputs and assumptions'!$C$44 -> 36994.37991 | Q22: =Q122/'Inputs and assumptions'!$C$44 -> 44270.54964 | R22: =R122/'Inputs and assumptions'!$C$44 -> 54168.30371 | S22: =S122/'Inputs and assumptions'!$C$44 -> 61976.0951 | T22: =T122/'Inputs and assumptions'!$C$44 -> 72694.08838 | U22: =U122/'Inputs and assumptions'!$C$44 -> 98559.87283 | V22: =V122/'Inputs and assumptions'!$C$44 -> 90619.49932 | W22: =W122/'Inputs and assumptions'!$C$44 -> 39293.28925 | X22: =X122 -> ok
C23: Average number of trips by day 2011/12 without a restriction on the number of taxis | J23: =J110/'Inputs and assumptions'!$C$44 -> 56495.97318 | K23: =K110/'Inputs and assumptions'!$C$44 -> 56059.18088 | L23: =L110/'Inputs and assumptions'!$C$44 -> 57804.72925 | M23: =M110/'Inputs and assumptions'!$C$44 -> 61635.07621 | N23: =N110/'Inputs and assumptions'!$C$44 -> 62178.25336 | O23: =O110/'Inputs and assumptions'!$C$44 -> 41327.38006 | P23: =P110/'Inputs and assumptions'!$C$44 -> 36994.37991 | Q23: =Q110/'Inputs and assumptions'!$C$44 -> 44270.54964 | R23: =R110/'Inputs and assumptions'!$C$44 -> 55501.46699 | S23: =S110/'Inputs and assumptions'!$C$44 -> 64401.86695 | T23: =T110/'Inputs and assumptions'!$C$44 -> 76591.26403 | U23: =U110/'Inputs and assumptions'!$C$44 -> 106330.2942 | V23: =V110/'Inputs and assumptions'!$C$44 -> 97869.69133 | W23: =W110/'Inputs and assumptions'!$C$44 -> 39293.28925
C24: Proportion of taxis on the road | J24: =J134/100 -> 0.8285193593 | K24: =K134/100 -> 0.8348091526 | L24: 0.8418156435 | M24: 0.8708689789 | N24: 0.843136514 | O24: 0.6784054288 | P24: 0.6171523004 | Q24: 0.7250087142 | R24: 0.7664096058 | S24: 0.7950701803 | T24: 0.8354261809 | U24: 0.89 | V24: 0.8445928901 | W24: 0.5963208743 | X24: =X134 -> ok
C106: Occupancy | J106: =J140 -> 0.2708526995 | K106: =K140 -> 0.2674247993 | L106: 0.2727502499 | M106: 0.2805591045 | N106: 0.2900607325 | O106: 0.2485712029 | P106: 0.2445939184 | Q106: 0.2365385669 | R106: 0.2737881016 | S106: 0.3019597228 | T106: 0.3370709208 | U106: 0.4289833158 | V106: 0.415627726 | W106: 0.2552517022
J108: Monday | K108: Tuesday | L108: Wednesday | M108: Thursday | N108: Friday | O108: Saturday | P108: Sunday | Q108: Monday | R108: Tuesday | S108: Wednesday | T108: Thursday | U108: Friday | V108: Saturday | W108: Sunday
A109: BASELINE MODEL | J109: Day | K109: Day | L109: Day | M109: Day | N109: Day | O109: Day | P109: Day | Q109: Night | R109: Night | S109: Night | T109: Night | U109: Night | V109: Night | W109: Night
A110: Q* | B110: Free entry demand | C110: Occupied kilometres | J110: 395471.8123 | K110: 392414.2662 | L110: 404633.1047 | M110: 431445.5335 | N110: 435247.7735 | O110: 289291.6604 | P110: 258960.6594 | Q110: 309893.8475 | R110: 388510.269 | S110: 450813.0687 | T110: 536138.8482 | U110: 744312.0595 | V110: 685087.8393 | W110: 275053.0247
A111: W* | B111: Free entry waiting time | C111: Minutes, average | J111: 6.298360062 | K111: 6.334047537 | L111: 6.194539382 | M111: 5.915099316 | N111: 5.878153051 | O111: 9.059490033 | P111: 9.906222348 | Q111: 7.920974049 | R111: 6.668277582 | S111: 5.977850475 | T111: 5.284735528 | U111: 4.57907605 | V111: 4.703848917 | W111: 9.872323745
A112: T* | B112: Free entry number of taxis on the road | C112: Taxis on the road | J112: 5166.815035 | K112: 5135.112042 | L112: 5261.326979 | M112: 5533.934223 | N112: 5572.124616 | O112: 3636.931504 | P112: 3308.553483 | Q112: 4094.124209 | R112: 4926.992756 | S112: 5550.519661 | T112: 6360.367607 | U112: 7732.881587 | V112: 7404.383942 | W112: 3367.423977
A113: Q* zero condition | B113: Zero condition to solve for free entry | C113: Occupied kilometres | J113: =J10-J11*J13-J12*J111-J110 -> -7.566995919e-09 | K113: 5.820766091e-10 | L113: -8.731149137e-10 | M113: 8.731149137e-10 | N113: -8.731149137e-10 | O113: 0 | P113: 6.4028427e-10 | Q113: 0 | R113: 0 | S113: 0 | T113: 0 | U113: 0 | V113: 0 | W113: 6.98491931e-10 | X113: ok
A114: W* zero condition | B114: Zero condition to solve for free entry | C114: Minutes, average | J114: =J17/(J112-J110*J18)-J111 -> -3.230551382e-07 | K114: -2.004529875e-11 | L114: -1.97717398e-11 | M114: -1.930988702e-11 | N114: -1.838262875e-11 | O114: -7.519318501e-12 | P114: -5.375255796e-12 | Q114: -7.549516567e-13 | R114: -5.784706048e-12 | S114: -8.372857963e-12 | T114: -1.000000083e-11 | U114: -4.956035582e-12 | V114: -1.26929578e-11 | W114: 4.268585485e-12 | X114: formula correct (as per Description) and check below
A115: T* zero condition | B115: Zero condition to solve for free entry | C115: Taxis on the road | J115: =(-J15+SQRT(J15^2+4*J16*(J13-J14)*J110))/(2*J16)-J112 -> -9.99238182e-07 | K115: 1.099579094e-09 | L115: 1.091393642e-09 | M115: 1.146872819e-09 | N115: 1.126863935e-09 | O115: 2.123670129e-10 | P115: 1.2187229e-10 | Q115: 2.273736754e-11 | R115: 2.792148734e-10 | S115: 4.674802767e-10 | T115: 6.730260793e-10 | U115: 3.337845556e-10 | V115: 9.476934792e-10 | W115: 0 | X115: formula correct (as per Description) and check below
A116: Qbar | B116: Fixed taxi numbers demand | C116: Occupied kilometres | J116: =((J18*(J10-J11*J13)+J118)-SQRT((J18*(J10-J11*J13)+J118)^2-4*J18*(J118*(J10-J11*J13)-J12*J17)))/(2*J18) -> 384974.1907 | K116: 382987.5585 | L116: 393892.7024 | M116: 419153.3805 | N116: 419548.9348 | O116: 296523.818 | P116: 271291.5817 | Q116: 312740.9078 | R116: 379178.126 | S116: 433832.6657 | T116: 508858.6187 | U116: 689919.1098 | V116: 634336.4952 | W116: 289154.1056 | X116: formula correct (as per Description) and check below
A117: Wbar | B117: Fixed taxi numbers waiting time | C117: Minutes, average | J117: =J17/(J118-J116*J18) -> 7.64474437 | K117: 7.551643614 | L117: 7.543629115 | M117: 7.371111129 | N117: 7.715459657 | O117: 7.86556983 | P117: 7.673351698 | Q117: 7.470009887 | R117: 7.877431234 | S117: 7.899925081 | T117: 7.916510084 | U117: 8.627204957 | V117: 8.88325025 | W117: 7.307499051 | X117: formula correct (as per Description) and check below
A118: Tbar | B118: Fixed taxi numbers | C118: Taxis on the road | J118: =J8 -> 4441.692285 | K118: 4475.411867 | L118: 4512.973665 | M118: 4668.728596 | N118: 4520.054851 | O118: 4074.36 | P118: 4074.36 | Q118: 4291.72 | R118: 4327.915044 | S118: 4489.761308 | T118: 4717.651643 | U118: 5025.83 | V118: 4769.41605 | W118: 4291.72 | X118: ok
A119: Q*_flat | B119: Free entry demand, flat cost curve | C119: Occupied kilometres | J119: =(J10-J11*J13+SQRT((J10-J11*J13)^2-4*J12*J17/((J13-J14)/J15-J18)))/2 -> 412455.4079 | K119: 409309.5538 | L119: 421880.9294 | M119: 449463.4568 | N119: 453452.1726 | O119: 303516.0118 | P119: 272365.8559 | Q119: 324183.3976 | R119: 405026.3049 | S119: 469081.7379 | T119: 556772.8045 | U119: 768824.0916 | V119: 707039.9052 | W119: 287800.9819 | X119: formula correct (as per Description) and check below
A120: W*_flat | B120: Free entry waiting time, flat cost curve | C120: Minutes, average | J120: =J17/((J13-J14)/J15-J18)/J119 -> 4.120109831 | K120: 4.151775997 | L120: 4.028059726 | M120: 3.780867065 | N120: 3.747609304 | O120: 6.711264036 | P120: 7.478823246 | Q120: 5.657560527 | R120: 4.528316238 | S120: 3.909952243 | T120: 3.29413933 | U120: 2.754797969 | V120: 2.89608411 | W120: 7.553616716 | X120: formula correct (as per Description) and check below
A121: T*_flat | B121: Free entry number of taxis on the road, flat cost curve | C121: Taxis on the road | J121: =(J13-J14)*J119/J15 -> 7298.140529 | K121: =(K13-K14)*K119/K15 -> 7242.476608 | L121: 7464.919239 | M121: 7952.974813 | N121: 8023.552646 | O121: 4637.604143 | P121: 4161.642129 | Q121: 5389.276515 | R121: 6733.221904 | S121: 7798.08964 | T121: 9255.87992 | U121: 11390.03494 | V121: 10758.50403 | W121: 4177.097409 | X121: formula correct (as per Description) and check below. But answer is correct only if 'flat' option is selected
A122: Q | B122: Equilibrium demand | C122: Occupied kilometres | J122: =IF(J124=J$118,J116,IF('Inputs and assumptions'!$C$61="Flat",J119,J110)) -> 384974.1907 | K122: =IF(K124=K$118,K116,IF('Inputs and assumptions'!$C$61="Flat",K119,K110)) -> 382987.5585 | L122: =IF(L124=L$118,L116,IF('Inputs and assumptions'!$C$61="Flat",L119,L110)) -> 393892.7024 | M122: =IF(M124=M$118,M116,IF('Inputs and assumptions'!$C$61="Flat",M119,M110)) -> 419153.3805 | N122: =IF(N124=N$118,N116,IF('Inputs and assumptions'!$C$61="Flat",N119,N110)) -> 419548.9348 | O122: =IF(O124=O$118,O116,IF('Inputs and assumptions'!$C$61="Flat",O119,O110)) -> 289291.6604 | P122: =IF(P124=P$118,P116,IF('Inputs and assumptions'!$C$61="Flat",P119,P110)) -> 258960.6594 | Q122: =IF(Q124=Q$118,Q116,IF('Inputs and assumptions'!$C$61="Flat",Q119,Q110)) -> 309893.8475 | R122: =IF(R124=R$118,R116,IF('Inputs and assumptions'!$C$61="Flat",R119,R110)) -> 379178.126 | S122: =IF(S124=S$118,S116,IF('Inputs and assumptions'!$C$61="Flat",S119,S110)) -> 433832.6657 | T122: =IF(T124=T$118,T116,IF('Inputs and assumptions'!$C$61="Flat",T119,T110)) -> 508858.6187 | U122: =IF(U124=U$118,U116,IF('Inputs and assumptions'!$C$61="Flat",U119,U110)) -> 689919.1098 | V122: =IF(V124=V$118,V116,IF('Inputs and assumptions'!$C$61="Flat",V119,V110)) -> 634336.4952 | W122: =IF(W124=W$118,W116,IF('Inputs and assumptions'!$C$61="Flat",W119,W110)) -> 275053.0247 | X122: ok
A123: W | B123: Equilibrium waiting time | C123: Minutes, average | J123: =IF(J124=J$118,J117,IF('Inputs and assumptions'!$C$61="Flat",J120,J111)) -> 7.64474437 | K123: =IF(K124=K$118,K117,IF('Inputs and assumptions'!$C$61="Flat",K120,K111)) -> 7.551643614 | L123: =IF(L124=L$118,L117,IF('Inputs and assumptions'!$C$61="Flat",L120,L111)) -> 7.543629115 | M123: =IF(M124=M$118,M117,IF('Inputs and assumptions'!$C$61="Flat",M120,M111)) -> 7.371111129 | N123: =IF(N124=N$118,N117,IF('Inputs and assumptions'!$C$61="Flat",N120,N111)) -> 7.715459657 | O123: =IF(O124=O$118,O117,IF('Inputs and assumptions'!$C$61="Flat",O120,O111)) -> 9.059490033 | P123: =IF(P124=P$118,P117,IF('Inputs and assumptions'!$C$61="Flat",P120,P111)) -> 9.906222348 | Q123: =IF(Q124=Q$118,Q117,IF('Inputs and assumptions'!$C$61="Flat",Q120,Q111)) -> 7.920974049 | R123: =IF(R124=R$118,R117,IF('Inputs and assumptions'!$C$61="Flat",R120,R111)) -> 7.877431234 | S123: =IF(S124=S$118,S117,IF('Inputs and assumptions'!$C$61="Flat",S120,S111)) -> 7.899925081 | T123: =IF(T124=T$118,T117,IF('Inputs and assumptions'!$C$61="Flat",T120,T111)) -> 7.916510084 | U123: =IF(U124=U$118,U117,IF('Inputs and assumptions'!$C$61="Flat",U120,U111)) -> 8.627204957 | V123: =IF(V124=V$118,V117,IF('Inputs and assumptions'!$C$61="Flat",V120,V111)) -> 8.88325025 | W123: =IF(W124=W$118,W117,IF('Inputs and assumptions'!$C$61="Flat",W120,W111)) -> 9.872323745 | X123: ok
A124: T | B124: Equilibrium number of taxis on the road | C124: Taxis on the road | J124: =IF('Inputs and assumptions'!$C$61="Flat",MIN(J121,J118),MIN(J112,J118)) -> 4441.692285 | K124: =IF('Inputs and assumptions'!$C$61="Flat",MIN(K121,K118),MIN(K112,K118)) -> 4475.411867 | L124: =IF('Inputs and assumptions'!$C$61="Flat",MIN(L121,L118),MIN(L112,L118)) -> 4512.973665 | M124: =IF('Inputs and assumptions'!$C$61="Flat",MIN(M121,M118),MIN(M112,M118)) -> 4668.728596 | N124: =IF('Inputs and assumptions'!$C$61="Flat",MIN(N121,N118),MIN(N112,N118)) -> 4520.054851 | O124: =IF('Inputs and assumptions'!$C$61="Flat",MIN(O121,O118),MIN(O112,O118)) -> 3636.931504 | P124: =IF('Inputs and assumptions'!$C$61="Flat",MIN(P121,P118),MIN(P112,P118)) -> 3308.553483 | Q124: =IF('Inputs and assumptions'!$C$61="Flat",MIN(Q121,Q118),MIN(Q112,Q118)) -> 4094.124209 | R124: =IF('Inputs and assumptions'!$C$61="Flat",MIN(R121,R118),MIN(R112,R118)) -> 4327.915044 | S124: =IF('Inputs and assumptions'!$C$61="Flat",MIN(S121,S118),MIN(S112,S118)) -> 4489.761308 | T124: =IF('Inputs and assumptions'!$C$61="Flat",MIN(T121,T118),MIN(T112,T118)) -> 4717.651643 | U124: =IF('Inputs and assumptions'!$C$61="Flat",MIN(U121,U118),MIN(U112,U118)) -> 5025.83 | V124: =IF('Inputs and assumptions'!$C$61="Flat",MIN(V121,V118),MIN(V112,V118)) -> 4769.41605 | W124: =IF('Inputs and assumptions'!$C$61="Flat",MIN(W121,W118),MIN(W112,W118)) -> 3367.423977 | X124: ok
A125: Difference between max effective and free entry (for info) | J125: =J112-J118 -> 725.1227491 | K125: =K112-K118 -> 659.7001745 | L125: 748.3533141 | M125: 865.2056271 | N125: 1052.069765 | O125: -437.4284962 | P125: -765.8065175 | Q125: -197.5957909 | R125: 599.0777127 | S125: 1060.758353 | T125: 1642.715963 | U125: 2707.051587 | V125: 2634.967892 | W125: -924.296023
A128: MODEL OUTPUTS
J129: Monday | K129: Tuesday | L129: Wednesday | M129: Thursday | N129: Friday | O129: Saturday | P129: Sunday | Q129: Monday | R129: Tuesday | S129: Wednesday | T129: Thursday | U129: Friday | V129: Saturday | W129: Sunday
J130: Day | K130: Day | L130: Day | M130: Day | N130: Day | O130: Day | P130: Day | Q130: Night | R130: Night | S130: Night | T130: Night | U130: Night | V130: Night | W130: Night
A131: Revenue per taxi (excluding GST) | J131: =J122*J13/J124 -> 243.1102035 | K131: =K122*K13/K124 -> 240.0334112 | L131: =L122*L13/L124 -> 244.8133945 | M131: 251.8224154 | N131: 260.3508248 | O131: 223.1109228 | P131: =P122*P13/P124 -> 219.5410177 | Q131: 216.033577 | R131: 250.0540343 | S131: 275.7835219 | T131: 307.85101 | U131: 398.5474043 | V131: 394.861346 | W131: 233.1245132 | X131: ok
A132: Cost per taxi | J132: =J15+J16*J124+J14*J122/J124 -> 213.0563312 | K132: =K15+K16*K124+K14*K122/K124 -> 212.830186 | L132: 213.9910411 | M132: 216.5993281 | N132: 216.7292958 | O132: 223.1109228 | P132: 219.5410177 | Q132: 216.033577 | R132: 223.8928649 | S132: 229.7020854 | T132: 237.1778889 | U132: 274.8922484 | V132: 270.5210422 | W132: =W15+W16*W124+W14*W122/W124 -> 233.1245132 | X132: ok
A133: Surplus per taxi for average shift | J133: =J131-J132 -> 30.05387236 | K133: 27.20322511 | L133: =L131-L132 -> 30.82235338 | M133: 35.22308729 | N133: 43.62152899 | O133: 1.270450412e-11 | P133: 7.730704965e-12 | Q133: 1.222133506e-12 | R133: 26.16116947 | S133: 46.08143651 | T133: 70.67312106 | U133: 123.655156 | V133: 124.3403038 | W133: =W131-W132 -> 0 | X133: ok
A134: Share of taxis on the road | J134: =J124/J6*100 -> 82.85193593 | K134: =K124/K6*100 -> 83.48091526 | L134: =L124/L6*100 -> 84.18156435 | M134: 87.08689789 | N134: 84.3136514 | O134: 67.84054288 | P134: 61.71523004 | Q134: 72.50087142 | R134: 76.64096058 | S134: 79.50701803 | T134: 83.54261809 | U134: 89 | V134: 84.45928901 | W134: 59.63208743 | X134: ok
A135: Free market taxis on the road as a proportion of maximum | J135: =J112/J118*100 -> 116.3253711 | K135: =K112/K118*100 -> 114.7405467 | L135: =L112/L118*100 -> 116.5822664 | M135: 118.5319324 | N135: 123.2755973 | O135: 89.26387221 | P135: 81.20425006 | Q135: 95.39588345 | R135: 113.8421782 | S135: 123.6261636 | T135: 134.8206287 | U135: 153.8627766 | V135: 155.2471805 | W135: 78.46327293 | X135: ok
A136: Average surplus accruing to shift (adjusted for distribution) | J136: =J133*J137+_xlfn.NORM.DIST(-1*(J135-100)/'Inputs and assumptions'!$C$59,0,1,FALSE)*'Inputs and assumptions'!$C$59/$C$137 -> 36.46116643 | K136: =K133*K137+_xlfn.NORM.DIST(-1*(K135-100)/'Inputs and assumptions'!$C$59,0,1,FALSE)*'Inputs and assumptions'!$C$59/$C$137 -> 34.34324948 | L136: =L133*L137+_xlfn.NORM.DIST(-1*(L135-100)/'Inputs and assumptions'!$C$59,0,1,FALSE)*'Inputs and assumptions'!$C$59/$C$137 -> 37.03863355 | M136: =M133*M137+_xlfn.NORM.DIST(-1*(M135-100)/'Inputs and assumptions'!$C$59,0,1,FALSE)*'Inputs and assumptions'!$C$59/$C$137 -> 40.4313673 | N136: =N133*N137+_xlfn.NORM.DIST(-1*(N135-100)/'Inputs and assumptions'!$C$59,0,1,FALSE)*'Inputs and assumptions'!$C$59/$C$137 -> 47.28206955 | O136: =O133*O137+_xlfn.NORM.DIST(-1*(O135-100)/'Inputs and assumptions'!$C$59,0,1,FALSE)*'Inputs and assumptions'!$C$59/$C$137 -> 15.95080653 | P136: =P133*P137+_xlfn.NORM.DIST(-1*(P135-100)/'Inputs and assumptions'!$C$59,0,1,FALSE)*'Inputs and assumptions'!$C$59/$C$137 -> 13.19485324 | Q136: =Q133*Q137+_xlfn.NORM.DIST(-1*(Q135-100)/'Inputs and assumptions'!$C$59,0,1,FALSE)*'Inputs and assumptions'!$C$59/$C$137 -> 17.19251477 | R136: =R133*R137+_xlfn.NORM.DIST(-1*(R135-100)/'Inputs and assumptions'!$C$59,0,1,FALSE)*'Inputs and assumptions'!$C$59/$C$137 -> 33.57692812 | S136: =S133*S137+_xlfn.NORM.DIST(-1*(S135-100)/'Inputs and assumptions'!$C$59,0,1,FALSE)*'Inputs and assumptions'!$C$59/$C$137 -> 49.32627296 | T136: =T133*T137+_xlfn.NORM.DIST(-1*(T135-100)/'Inputs and assumptions'!$C$59,0,1,FALSE)*'Inputs and assumptions'!$C$59/$C$137 -> 71.51412216 | U136: =U133*U137+_xlfn.NORM.DIST(-1*(U135-100)/'Inputs and assumptions'!$C$59,0,1,FALSE)*'Inputs and assumptions'!$C$59/$C$137 -> 123.438068 | V136: =V133*V137+_xlfn.NORM.DIST(-1*(V135-100)/'Inputs and assumptions'!$C$59,0,1,FALSE)*'Inputs and assumptions'!$C$59/$C$137 -> 124.1719094 | W136: =W133*W137+_xlfn.NORM.DIST(-1*(W135-100)/'Inputs and assumptions'!$C$59,0,1,FALSE)*'Inputs and assumptions'!$C$59/$C$137 -> 12.08210733 | X136: can't check
A137: Percentage of shifts where surplus accrues | C137: =STDEV(J135:W135)/STDEV(J133:W133) -> 0.5714894073 | J137: =(1-_xlfn.NORM.DIST(-1*(J135-100)/'Inputs and assumptions'!$C$59,0,1,TRUE)) -> 0.7427225622 | K137: =(1-_xlfn.NORM.DIST(-1*(K135-100)/'Inputs and assumptions'!$C$59,0,1,TRUE)) -> 0.7218984209 | L137: =(1-_xlfn.NORM.DIST(-1*(L135-100)/'Inputs and assumptions'!$C$59,0,1,TRUE)) -> 0.7460201088 | M137: =(1-_xlfn.NORM.DIST(-1*(M135-100)/'Inputs and assumptions'!$C$59,0,1,TRUE)) -> 0.7703059604 | N137: =(1-_xlfn.NORM.DIST(-1*(N135-100)/'Inputs and assumptions'!$C$59,0,1,TRUE)) -> 0.8236169464 | O137: =(1-_xlfn.NORM.DIST(-1*(O135-100)/'Inputs and assumptions'!$C$59,0,1,TRUE)) -> 0.3340995163 | P137: =(1-_xlfn.NORM.DIST(-1*(P135-100)/'Inputs and assumptions'!$C$59,0,1,TRUE)) -> 0.2265107412 | Q137: =(1-_xlfn.NORM.DIST(-1*(Q135-100)/'Inputs and assumptions'!$C$59,0,1,TRUE)) -> 0.4270807597 | R137: =(1-_xlfn.NORM.DIST(-1*(R135-100)/'Inputs and assumptions'!$C$59,0,1,TRUE)) -> 0.7097397682 | S137: =(1-_xlfn.NORM.DIST(-1*(S135-100)/'Inputs and assumptions'!$C$59,0,1,TRUE)) -> 0.8272191494 | T137: =(1-_xlfn.NORM.DIST(-1*(T135-100)/'Inputs and assumptions'!$C$59,0,1,TRUE)) -> 0.9177587011 | U137: =(1-_xlfn.NORM.DIST(-1*(U135-100)/'Inputs and assumptions'!$C$59,0,1,TRUE)) -> 0.9842372858 | V137: =(1-_xlfn.NORM.DIST(-1*(V135-100)/'Inputs and assumptions'!$C$59,0,1,TRUE)) -> 0.9862956236 | W137: =(1-_xlfn.NORM.DIST(-1*(W135-100)/'Inputs and assumptions'!$C$59,0,1,TRUE)) -> 0.1949452424 | X137: can't check
A138: Surplus (basic) | C138: $/taxi | J138: =SUMPRODUCT(J134:W134,J133:W133)*365/7/100 -> 24601.5424
A139: Surplus accounting for shift variation | C139: $/taxi | J139: =SUMPRODUCT(J134:W134,J136:W136)*365/7/100 -> 28323.94682
A140: Occupancy rate of taxis (time) | J140: =J122*J18/J124 -> 0.2708526995 | K140: =K122*K18/K124 -> 0.2674247993 | L140: 0.2727502499 | M140: 0.2805591045 | N140: 0.2900607325 | O140: 0.2485712029 | P140: 0.2445939184 | Q140: 0.2365385669 | R140: 0.2737881016 | S140: 0.3019597228 | T140: 0.3370709208 | U140: 0.4289833158 | V140: 0.415627726 | W140: 0.2552517022 | X140: ok - see check in previous version
A141: Revenue per taxi (including GST) | C141: =(U141-(U142*1.99)*'Inputs and assumptions'!C27)/10/60 -> 0.668482147 | J141: =J131*$B$20 -> 267.4212239 | K141: =K131*$B$20 -> 264.0367523 | L141: 269.2947339 | M141: 277.0046569 | N141: 286.3859073 | O141: 245.4220151 | P141: 241.4951194 | Q141: 237.6369348 | R141: 275.0594378 | S141: 303.3618741 | T141: 338.636111 | U141: 438.4021448 | V141: 434.3474806 | W141: 256.4369646 | X141: ok - GST no longer hard-coded
A142: Occupied kms per shift | J142: =J131/J13 -> 86.67286384 | K142: =K131/K13 -> 85.57593577 | L142: 87.28007997 | M142: 89.77891344 | N142: 92.8194344 | O142: 79.54278493 | P142: 78.27005389 | Q142: 75.69234142 | R142: 87.61219251 | S142: 96.62711131 | T142: 107.8626946 | U142: 137.2746611 | V142: 133.0008723 | W142: 81.68054471 | X142: ok - formula simplified
A144: MODEL VALIDATION
A146: Model validation | M146: Source/Notes
B147: Model | C147: Data | J147: Difference (per cent)
A148: Average occupancy | B148: =SUMPRODUCT(J140:W140,J134:W134)/SUM(J134:W134) -> 0.2984975214 | C148: 0.3 | J148: =B148/C148*100-100 -> -0.5008261971
A149: Kilometres per year | B149: ='Inputs and assumptions'!C53*B150 -> 108952.7 | C149: 107000 | J149: =B149/C149*100-100 -> 1.824953224 | M149: Average kilometres from CIE 2012 survey
A150: Occupied kilometres per taxi per year | B150: =SUMPRODUCT(J142:W142,J134:W134)/100*365/7 -> 54625.39541 | C150: NA
A151: Average revenue per taxi per year (excluding GST) | B151: =B152+B153 -> 159395.0213 | C151: =152556*(1+'Inputs and assumptions'!C31) -> 158200.572 | J151: =B151/C151*100-100 -> 0.7550221409 | M151: Average revenue from CIE 2012 survey, escalated by IPART 2012 price increase.
A152: Average cost per taxi per year (excluding plate lease costs) | B152: =SUMPRODUCT(J132:W132,J134:W134)/100*365/7 -> 131071.0745 | C152: =(C151)-C153 -> 130045.572 | J152: =B152/C152*100-100 -> 0.7885716594 | M152: From CIE survey, escalated by IPART 2012 price increase.
A153: Plate lease costs | B153: =J139 -> 28323.94682 | C153: 28155 | J153: =B153/C153*100-100 -> 0.6000597423
A154: ="Peak plate lease costs driving "&'Inputs and assumptions'!C64*100&"% of peak days" -> Peak plate lease costs driving 90% of peak days | B154: =(SUM($Q$136:$W$136)+'Inputs and assumptions'!$C$63*SUM('Base model'!$Q$131:$W$131))*365/7*'Inputs and assumptions'!$C$64-('Inputs and assumptions'!$C$30*(1-'Inputs and assumptions'!$C$64*365/'Inputs and assumptions'!$C$46)) -> 21398.96244 | C154: =26786.36/34651.92*C153 -> 21764.161 | J154: =B154/C154*100-100 -> -1.677981338
B156: =200000/B151-1 -> 0.2547443346
P195: 0 | Q195: 0 | R195: 0 | S195: 0 | T195: 0 | U195: 0 | V195: 0 | W195: 0 | X195: 0 | Y195: 0 | Z195: 0 | AA195: 0 | AB195: 0 | AC195: 0
P196: 0 | Q196: 0 | R196: 0 | S196: 0 | T196: 0 | U196: 0 | V196: 0 | W196: 0 | X196: 0 | Y196: 0 | Z196: 0 | AA196: 0 | AB196: 0 | AC196: 0
P197: 0 | Q197: 0 | R197: 0 | S197: 0 | T197: 0 | U197: 0 | V197: 0 | W197: 0 | X197: 0 | Y197: 0 | Z197: 0 | AA197: 0 | AB197: 0 | AC197: 0
P198: 0 | Q198: 0 | R198: 0 | S198: 0 | T198: 0 | U198: 0 | V198: 0 | W198: 0 | X198: 0 | Y198: 0 | Z198: 0 | AA198: 0 | AB198: 0 | AC198: 0
P199: 0 | Q199: 0 | R199: 0 | S199: 0 | T199: 0 | U199: 0 | V199: 0 | W199: 0 | X199: 0 | Y199: 0 | Z199: 0 | AA199: 0 | AB199: 0 | AC199: 0
P200: 0 | Q200: 0 | R200: 0 | S200: 0 | T200: 0 | U200: 0 | V200: 0 | W200: 0 | X200: 0 | Y200: 0 | Z200: 0 | AA200: 0 | AB200: 0 | AC200: 0
